Workbook

Sheet SUMPRODUCT
A1: Example 1: SUMPRODUCT to save space
A2: Units | B2: Price | C2: Sales
A3: 5 | B3: 22
A4: 2 | B4: 23
A5: 4 | B5: 25
A6: 6 | B6: 24.5
B7: Total
A8: 1 cell solution | B8: Total | D8: SUMPRODUCT multiplies two arrays and then adds
D9: =A3&"*"&B3&"+"&A4&"*"&B4&"+"&A5&"*"&B5&"+"&A6&"*"&B6&" = "&A3*B3&"+"&A4*B4&"+"&A5*B5&"+"&A6*B6&" = "&SUMPRODUCT(A3:A6,B3:B6) -> 5*22+2*23+4*25+6*24.5 = 110+46+100+147 = 403
A11: Example 2: SUMPRODUCT because the nature of the calculation warrants it
A12: Economic State | B12: Probability of State | C12: Stock1 Return
A13: Weak | B13: 0.55 | C13: -0.02
A14: Normal | B14: 0.3 | C14: 0.059
A15: Boom | B15: =1-SUM(B13:B14) -> 0.15 | C15: 0.12
B16: Expected Return
A17: easier | B17: Expected Return
A19: Example 3: the demensions of the arrays in the SUMPRODUCT must be the same, if they are not, you can use a * symbol
B20: Weight in Portfolio | C20: 0.25 | D20: 0.75
A21: Economic State | B21: Probability of State | C21: Stock1 Return | D21: Stock1 Return
A22: Weak | B22: 0.55 | C22: -0.02 | D22: 0.05
A23: Normal | B23: 0.3 | C23: 0.059 | D23: 0.065
A24: Boom | B24: =1-SUM(B22:B23) -> 0.15 | C24: 0.12 | D24: 0.085
C25: Expected Return of Portfolio | G25: Expected Return of Portfolio
A27: Example 4: In earlier versions of Excel, you could use SUMPRODUCT to count or sum with more than 1 criteria. SUMPRODUCT cannot understand TRUE or FALSE and so you must convert TRUEs and FALSEs to 1s and 0s. The fastest calculating method is to use double negative like: --(A29:A34=E29) ==> --({TRUE;FALSE;TRUE;FALSE;TRUE;FALSE}) ==> {1;0;1;0;1;0} Run Formula Evaluator or use F9 key to see how formula works -- if you use F9 key, remember to undo or hit Esc key... | H27: Notes:
A28: SalesRep | B28: Product | C28: Sales | E28: SalesRep | F28: Product | H28: * Define Array Formula: Formulas that perform operations on arrays instead of single cells.
A29: SR1 | B29: P2 | C29: 16 | E29: SR1 | F29: P1 | H29: * Boolean Logic: {1;0;1;0;1;0},{0;0;1;0;1;0},{16;10;12;19;11;13}
A30: SR2 | B30: P2 | C30: 10 | H30: * TRUEs and FALSEs often time need to be converted to 1s and 0s.
A31: SR1 | B31: P1 | C31: 12 | E31: Count | H31: * TRUEs and FALSEscan be converted to 1s and 0s with any math operation: *1, /1, ^1, +0, --
A32: SR2 | B32: P2 | C32: 19 | H32: * Double Negative (--) tends to be the most efficient method of converting TRUEs and FALSEs to 1s and 0s.
A33: SR1 | B33: P1 | C33: 11 | E33: Sum | H33: * Since comparative operators are at the bottom of the "Excel Order of Operations" list, when using Equal Sign
A34: SR2 | B34: P2 | C34: 13 | H34: and Double Negative, you must put Equal Sign operation in parenthesizes.
F36: ={1;0;1;0;1;0} -> 1 | G36: ={0;0;1;0;1;0} -> 0 | H36: =C29 -> 16
F37: 0 | G37: 0 | H37: 10
F38: 1 | G38: 1 | H38: 12
A39: Compare Boolean Logic to how SUMIFS works: it's the same!! | F39: 0 | G39: 0 | H39: 19
A40: =SUMIFS(C29:C34,A29:A34,E29,B29:B34,F29) -> 23 | F40: 1 | G40: 1 | H40: 11
F41: 0 | G41: 0 | H41: 13
H42: Total
A44: Example 5: use SUMPRODUCTS because SUMIFS and COUNTIFS can't handle arrays
A45: Year | B45: 2009
A46: Sales Rep | B46: Julie
A47: Count
A48: Add
E49: Extra Column Method
A50: Date | B50: SalesRep | C50: # Phone Calls | G50: Count
A51: 2009-01-02 | B51: Mo | C51: 5
A52: 2009-02-01 | B52: Julie | C52: 2
A53: 2009-01-15 | B53: Mo | C53: 5
A54: 2009-02-01 | B54: Mo | C54: 3
A55: 2009-02-15 | B55: Julie | C55: 2
A56: 2008-12-30 | B56: Julie | C56: 2
A57: 2009-02-15 | B57: Mo | C57: 3
A58: 2009-01-28 | B58: Julie | C58: 3
A60: Example 5: use SUMPRODUCTS because SUMIFS and COUNTIFS can't handle arrays
A61: Month | B61: Feb
A62: Year | B62: 2009
A63: Sales Rep | B63: Julie
A64: Count
A65: Add
E66: Extra Column Method
A67: Date | B67: SalesRep | C67: # Phone Calls | G67: Count
A68: 2009-01-02 | B68: Mo | C68: 5
A69: 2009-02-01 | B69: Julie | C69: 2
A70: 2009-01-15 | B70: Mo | C70: 5
A71: 2009-02-01 | B71: Mo | C71: 3
A72: 2009-02-15 | B72: Julie | C72: 2
A73: 2008-12-30 | B73: Julie | C73: 2
A74: 2009-02-15 | B74: Mo | C74: 3
A75: 2009-01-28 | B75: Julie | C75: 3

Sheet SUMPRODUCT (2)
A1: Example 1: SUMPRODUCT to save space
A2: Units | B2: Price | C2: Sales
A3: 5 | B3: 22 | C3: =A3*B3 -> 110
A4: 2 | B4: 23 | C4: =A4*B4 -> 46
A5: 4 | B5: 25 | C5: =A5*B5 -> 100
A6: 6 | B6: 24.5 | C6: =A6*B6 -> 147
B7: Total | C7: =SUM(C3:C6) -> 403
A8: 1 cell solution | B8: Total | C8: =SUMPRODUCT(A3:A6,B3:B6) -> 403 | D8: SUMPRODUCT multiplies two arrays and then adds
D9: =A3&"*"&B3&"+"&A4&"*"&B4&"+"&A5&"*"&B5&"+"&A6&"*"&B6&" = "&A3*B3&"+"&A4*B4&"+"&A5*B5&"+"&A6*B6&" = "&SUMPRODUCT(A3:A6,B3:B6) -> 5*22+2*23+4*25+6*24.5 = 110+46+100+147 = 403
A11: Example 2: SUMPRODUCT because the nature of the calculation warrants it
A12: Economic State | B12: Probability of State | C12: Stock1 Return
A13: Weak | B13: 0.55 | C13: -0.02
A14: Normal | B14: 0.3 | C14: 0.059
A15: Boom | B15: =1-SUM(B13:B14) -> 0.15 | C15: 0.12
B16: Expected Return | C16: =B13*C13+B14*C14+B15*C15 -> 0.0247
A17: easier | B17: Expected Return | C17: =SUMPRODUCT(B13:B15,C13:C15) -> 0.0247
A19: Example 3: the demensions of the arrays in the SUMPRODUCT must be the same, if they are not, you can use a * symbol
B20: Weight in Portfolio | C20: 0.25 | D20: 0.75
A21: Economic State | B21: Probability of State | C21: Stock1 Return | D21: Stock1 Return
A22: Weak | B22: 0.55 | C22: -0.02 | D22: 0.05 | F22: =C22*$B22*C$20 -> -0.00275 | G22: 0.020625
A23: Normal | B23: 0.3 | C23: 0.059 | D23: 0.065 | F23: 0.004425 | G23: 0.014625
A24: Boom | B24: =1-SUM(B22:B23) -> 0.15 | C24: 0.12 | D24: 0.085 | F24: 0.0045 | G24: 0.0095625
C25: Expected Return of Portfolio | D25: =SUMPRODUCT(C22:D24*B22:B24*C20:D20) -> 0.0509875 | G25: Expected Return of Portfolio | H25: =SUM(F22:G24) -> 0.0509875
A27: Example 4: In earlier versions of Excel, you could use SUMPRODUCT to count or sum with more than 1 criteria. SUMPRODUCT cannot understand TRUE or FALSE and so you must convert TRUEs and FALSEs to 1s and 0s. The fastest calculating method is to use double negative like: --(A29:A34=E29) ==> --({TRUE;FALSE;TRUE;FALSE;TRUE;FALSE}) ==> {1;0;1;0;1;0} Run Formula Evaluator or use F9 key to see how formula works -- if you use F9 key, remember to undo or hit Esc key... | H27: Notes:
A28: SalesRep | B28: Product | C28: Sales | E28: SalesRep | F28: Product | H28: * Define Array Formula: Formulas that perform operations on arrays instead of single cells.
A29: SR1 | B29: P2 | C29: 16 | E29: SR1 | F29: P1 | H29: * Boolean Logic: {1;0;1;0;1;0},{0;0;1;0;1;0},{16;10;12;19;11;13}
A30: SR2 | B30: P2 | C30: 10 | H30: * TRUEs and FALSEs often time need to be converted to 1s and 0s.
A31: SR1 | B31: P1 | C31: 12 | E31: Count | H31: * TRUEs and FALSEscan be converted to 1s and 0s with any math operation: *1, /1, ^1, +0, --
A32: SR2 | B32: P2 | C32: 19 | E32: =SUMPRODUCT(--(A29:A34=E29),--(B29:B34=F29)) -> 2 | H32: * Double Negative (--) tends to be the most efficient method of converting TRUEs and FALSEs to 1s and 0s.
A33: SR1 | B33: P1 | C33: 11 | E33: Sum | H33: * Since comparative operators are at the bottom of the "Excel Order of Operations" list, when using Equal Sign
A34: SR2 | B34: P2 | C34: 13 | E34: =SUMPRODUCT(--(A29:A34=E29),--(B29:B34=F29),C29:C34) -> 23 | H34: and Double Negative, you must put Equal Sign operation in parenthesizes.
F36: =--(A29=E$29) -> 1 | G36: 0 | H36: =C29 -> 16 | I36: =F36*G36*H36 -> 0
F37: 0 | G37: 0 | H37: 10 | I37: 0
F38: 1 | G38: 1 | H38: 12 | I38: 12
A39: Compare Boolean Logic to how SUMIFS works: it's the same!! | F39: 0 | G39: 0 | H39: 19 | I39: 0
A40: =SUMIFS(C29:C34,A29:A34,E29,B29:B34,F29) -> 23 | F40: 1 | G40: 1 | H40: 11 | I40: 11
F41: 0 | G41: 0 | H41: 13 | I41: 0
H42: Total | I42: =SUM(I36:I41) -> 23
A44: Example 5: use SUMPRODUCTS because SUMIFS and COUNTIFS can't handle arrays
A45: Year | B45: 2009
A46: Sales Rep | B46: Julie
A47: Count | B47: =SUMPRODUCT(--(YEAR(A51:A58)=B45),--(B51:B58=B46)) -> 3
A48: Add | B48: =SUMPRODUCT(--(YEAR(A51:A58)=B45),--(B51:B58=B46),C51:C58) -> 7
E49: Extra Column Method
A50: Date | B50: SalesRep | C50: # Phone Calls | G50: Count
A51: 2009-01-02 | B51: Mo | C51: 5 | E51: =YEAR(A51) -> 2009 | G51: =COUNTIFS(E51:E58,B45,B51:B58,B46) -> 3
A52: 2009-02-01 | B52: Julie | C52: 2 | E52: 2009
A53: 2009-01-15 | B53: Mo | C53: 5 | E53: 2009
A54: 2009-02-01 | B54: Mo | C54: 3 | E54: 2009
A55: 2009-02-15 | B55: Julie | C55: 2 | E55: 2009
A56: 2008-12-30 | B56: Julie | C56: 2 | E56: 2008
A57: 2009-02-15 | B57: Mo | C57: 3 | E57: 2009
A58: 2009-01-28 | B58: Julie | C58: 3 | E58: 2009
A60: Example 5: use SUMPRODUCTS because SUMIFS and COUNTIFS can't handle arrays
A61: Month | B61: Feb
A62: Year | B62: 2009
A63: Sales Rep | B63: Julie
A64: Count | B64: =SUMPRODUCT(--(TEXT(A68:A75,"mmmyyyy")=B61&B62),--(B68:B75=B63)) -> 2
A65: Add | B65: =SUMPRODUCT(--(TEXT(A68:A75,"mmmyyyy")=B61&B62),--(B68:B75=B63),C68:C75) -> 4
E66: Extra Column Method
A67: Date | B67: SalesRep | C67: # Phone Calls | G67: Count
A68: 2009-01-02 | B68: Mo | C68: 5 | E68: =TEXT(A68,"mmmyyyy") -> Jan2009 | G68: =COUNTIFS(E68:E75,B61&B62,B68:B75,B63) -> 2
A69: 2009-02-01 | B69: Julie | C69: 2 | E69: Feb2009
A70: 2009-01-15 | B70: Mo | C70: 5 | E70: Jan2009
A71: 2009-02-01 | B71: Mo | C71: 3 | E71: Feb2009
A72: 2009-02-15 | B72: Julie | C72: 2 | E72: Feb2009
A73: 2008-12-30 | B73: Julie | C73: 2 | E73: Dec2008
A74: 2009-02-15 | B74: Mo | C74: 3 | E74: Feb2009
A75: 2009-01-28 | B75: Julie | C75: 3 | E75: Jan2009

Sheet SP(2)
A1: Show a formula that caculate the amount of money by just entering the count of each bill.
A3: Bills | B3: 100 | C3: 50 | D3: 20 | E3: 10 | F3: 5 | G3: 1
A4: Enter # | B4: 5 | D4: 50 | E4: 22 | F4: 5 | G4: 38
A6: Total
A8: check

Sheet SP(2)an
A1: Show a formula that caculate the amount of money by just entering the count of each bill.
A3: Bills | B3: 100 | C3: 50 | D3: 20 | E3: 10 | F3: 5 | G3: 1
A4: Enter # | B4: 5 | D4: 50 | E4: 22 | F4: 5 | G4: 38
A6: Total | B6: =SUMPRODUCT(B3:G3,B4:G4) -> 1783
A8: check | B8: =B3*B4+C3*C4+D3*D4+E3*E4+F3*F4+G3*G4 -> 1783

Sheet SP(3)
A1: For the Basics of SUMPRODUCT, see these videos: | F1: Excel Formula Efficiency 1: SUMPRODUCT function 12 Examples | N1: Rand formulas
F2: Highline Excel Class 37: SUMPRODUCT function | N2: =INDEX({"Product1";"Product2";"Product3";"Product4";"Product5";"Product6";"Product7";"Product8";"Product9"},INT(RAND()*9+1)) -> Product2 | O2: =INT(RAND()*20+6) -> 25 | P2: =VLOOKUP(N2,{"Product1",2;"Product2",5;"Product3",3;"Product4",4;"Product5",5;"Product6",6;"Product7",5;"Product8",8;"Product9",10},2)+INT(RAND()*10)/10 -> 5.4
A3: For the Basics of SUMIF, see these videos: | F3: Excel Magic Trick #203: SUMIF function formula 21 Examples
A5: Show a formula for calculating Weighted Average Cost Form Transactionl data
K6: Column Method
A7: Date | B7: Product | C7: Qrt Purchased | D7: Price Each | F7: Product | G7: WAC | I7: Must use Ctrl + Shift + Enter | K7: total | M7: Product | N7: WAC
A8: 2010-01-08 | B8: Product9 | C8: 10 | D8: 10.3 | F8: Product1 | M8: Product1
A9: 2010-01-11 | B9: Product8 | C9: 8 | D9: 8.8 | F9: Product2 | M9: Product2
A10: 2010-01-12 | B10: Product7 | C10: 9 | D10: 5.7 | F10: Product3 | M10: Product3
A11: 2010-01-13 | B11: Product4 | C11: 13 | D11: 4 | F11: Product4 | M11: Product4
A12: 2010-01-14 | B12: Product8 | C12: 15 | D12: 8.4 | F12: Product5 | M12: Product5
A13: 2010-01-15 | B13: Product9 | C13: 12 | D13: 10 | F13: Product6 | M13: Product6
A14: 2010-01-18 | B14: Product2 | C14: 22 | D14: 5.9 | F14: Product7 | M14: Product7
A15: 2010-01-19 | B15: Product6 | C15: 23 | D15: 6.3 | F15: Product8 | M15: Product8
A16: 2010-01-20 | B16: Product2 | C16: 24 | D16: 5.5 | F16: Product9 | M16: Product9
A17: 2010-01-21 | B17: Product7 | C17: 11 | D17: 5
A18: 2010-01-22 | B18: Product1 | C18: 6 | D18: 2
A19: 2010-01-25 | B19: Product2 | C19: 22 | D19: 5
A20: 2010-01-26 | B20: Product7 | C20: 7 | D20: 5.8
A21: 2010-01-27 | B21: Product5 | C21: 11 | D21: 5.9
A22: 2010-01-28 | B22: Product1 | C22: 7 | D22: 2.1
A23: 2010-01-29 | B23: Product8 | C23: 20 | D23: 8.3
A24: 2010-02-01 | B24: Product7 | C24: 14 | D24: 5.1
A25: 2010-02-02 | B25: Product7 | C25: 22 | D25: 5.3
A26: 2010-02-03 | B26: Product9 | C26: 9 | D26: 10.1
A27: 2010-02-04 | B27: Product1 | C27: 10 | D27: 2
A28: 2010-02-05 | B28: Product7 | C28: 13 | D28: 5.1
A29: 2010-02-08 | B29: Product8 | C29: 20 | D29: 8
A30: 2010-02-09 | B30: Product8 | C30: 10 | D30: 8.1
A31: 2010-02-10 | B31: Product2 | C31: 11 | D31: 5.9
A32: 2010-02-11 | B32: Product8 | C32: 8 | D32: 8.4
A33: 2010-02-12 | B33: Product5 | C33: 11 | D33: 5.4
A34: 2010-02-15 | B34: Product9 | C34: 7 | D34: 10.7
A35: 2010-02-16 | B35: Product9 | C35: 11 | D35: 10.6
A36: 2010-02-17 | B36: Product8 | C36: 16 | D36: 8.3
A37: 2010-02-18 | B37: Product6 | C37: 13 | D37: 6.6
A38: 2010-02-19 | B38: Product3 | C38: 10 | D38: 3.6
A39: 2010-02-22 | B39: Product5 | C39: 17 | D39: 5.8
A40: 2010-02-23 | B40: Product6 | C40: 14 | D40: 6.1
A41: 2010-02-24 | B41: Product1 | C41: 15 | D41: 2
A42: 2010-02-25 | B42: Product9 | C42: 7 | D42: 10.1
A43: 2010-02-26 | B43: Product4 | C43: 9 | D43: 4.6
A44: 2010-03-01 | B44: Product3 | C44: 10 | D44: 3.1
A45: 2010-03-02 | B45: Product1 | C45: 6 | D45: 2.3
A46: 2010-03-03 | B46: Product3 | C46: 6 | D46: 3.5
A47: 2010-03-04 | B47: Product3 | C47: 8 | D47: 3
A48: 2010-03-05 | B48: Product6 | C48: 24 | D48: 6.4
A49: 2010-03-08 | B49: Product4 | C49: 23 | D49: 4.1
A50: 2010-03-09 | B50: Product6 | C50: 25 | D50: 6.7
A51: 2010-03-10 | B51: Product2 | C51: 10 | D51: 5.7
A52: 2010-03-11 | B52: Product1 | C52: 18 | D52: 2.3
A53: 2010-03-12 | B53: Product4 | C53: 24 | D53: 4.6
A54: 2010-03-15 | B54: Product7 | C54: 8 | D54: 5.4
A55: 2010-03-16 | B55: Product5 | C55: 9 | D55: 5
A56: 2010-03-17 | B56: Product9 | C56: 25 | D56: 10.9
A57: 2010-03-18 | B57: Product5 | C57: 22 | D57: 5.4
A58: 2010-03-19 | B58: Product2 | C58: 24 | D58: 5.3
A59: 2010-03-22 | B59: Product4 | C59: 10 | D59: 4.1
A60: 2010-03-23 | B60: Product3 | C60: 9 | D60: 3.5
A61: 2010-03-24 | B61: Product9 | C61: 24 | D61: 10.4
A62: 2010-03-25 | B62: Product2 | C62: 8 | D62: 5.3
A63: 2010-03-26 | B63: Product3 | C63: 18 | D63: 3.4
A64: 2010-03-29 | B64: Product5 | C64: 25 | D64: 5.8
A65: 2010-03-30 | B65: Product5 | C65: 17 | D65: 5.2
A66: 2010-03-31 | B66: Product5 | C66: 25 | D66: 5.7
A67: 2010-04-01 | B67: Product8 | C67: 8 | D67: 8.6
A68: 2010-04-02 | B68: Product9 | C68: 19 | D68: 10.9
A69: 2010-04-05 | B69: Product3 | C69: 15 | D69: 3.6
A70: 2010-04-06 | B70: Product3 | C70: 17 | D70: 3.9
A71: 2010-04-07 | B71: Product6 | C71: 15 | D71: 6
A72: 2010-04-08 | B72: Product6 | C72: 11 | D72: 6.8
A73: 2010-04-09 | B73: Product8 | C73: 16 | D73: 8.8
A74: 2010-04-12 | B74: Product5 | C74: 20 | D74: 5.8
A75: 2010-04-13 | B75: Product6 | C75: 13 | D75: 6.5
A76: 2010-04-14 | B76: Product1 | C76: 11 | D76: 2.5
A77: 2010-04-15 | B77: Product6 | C77: 18 | D77: 6.1
A78: 2010-04-16 | B78: Product2 | C78: 7 | D78: 5.1
A79: 2010-04-19 | B79: Product2 | C79: 8 | D79: 5
A80: 2010-04-20 | B80: Product9 | C80: 13 | D80: 10.5
A81: 2010-04-21 | B81: Product8 | C81: 22 | D81: 8.2
A82: 2010-04-22 | B82: Product7 | C82: 7 | D82: 5.1
A83: 2010-04-23 | B83: Product1 | C83: 7 | D83: 2
A84: 2010-04-26 | B84: Product4 | C84: 21 | D84: 4.5
A85: 2010-04-27 | B85: Product8 | C85: 25 | D85: 8.8
A86: 2010-04-28 | B86: Product1 | C86: 20 | D86: 2.8
A87: 2010-04-29 | B87: Product3 | C87: 12 | D87: 3
A88: 2010-04-30 | B88: Product9 | C88: 13 | D88: 10.6
A89: 2010-05-03 | B89: Product4 | C89: 16 | D89: 4.7
A90: 2010-05-04 | B90: Product9 | C90: 25 | D90: 10.8
A91: 2010-05-05 | B91: Product8 | C91: 14 | D91: 8.7
A92: 2010-05-06 | B92: Product3 | C92: 7 | D92: 3.4
A93: 2010-05-07 | B93: Product2 | C93: 7 | D93: 5.8
A94: 2010-05-10 | B94: Product2 | C94: 16 | D94: 5.1
A95: 2010-05-11 | B95: Product3 | C95: 20 | D95: 3.9
A96: 2010-05-12 | B96: Product5 | C96: 24 | D96: 5.7
A97: 2010-05-13 | B97: Product8 | C97: 17 | D97: 8.2
A98: 2010-05-14 | B98: Product9 | C98: 7 | D98: 10.5
A99: 2010-05-17 | B99: Product5 | C99: 19 | D99: 5.4
A100: 2010-05-18 | B100: Product7 | C100: 8 | D100: 5.2
A101: 2010-05-19 | B101: Product3 | C101: 10 | D101: 3.5
A102: 2010-05-20 | B102: Product1 | C102: 10 | D102: 2
A103: 2010-05-21 | B103: Product8 | C103: 16 | D103: 8
A104: 2010-05-24 | B104: Product2 | C104: 25 | D104: 5.7
A105: 2010-05-25 | B105: Product2 | C105: 18 | D105: 5
A106: 2010-05-26 | B106: Product2 | C106: 13 | D106: 5.3
A107: 2010-05-27 | B107: Product9 | C107: 17 | D107: 10.4
A108: 2010-05-28 | B108: Product5 | C108: 14 | D108: 5.6
A109: 2010-05-31 | B109: Product5 | C109: 24 | D109: 5.6
A110: 2010-06-01 | B110: Product5 | C110: 20 | D110: 5.9
A111: 2010-06-02 | B111: Product3 | C111: 25 | D111: 3.3
A112: 2010-06-03 | B112: Product1 | C112: 10 | D112: 2.6
A113: 2010-06-04 | B113: Product5 | C113: 19 | D113: 5.6
A114: 2010-06-07 | B114: Product3 | C114: 19 | D114: 3.5
A115: 2010-06-08 | B115: Product7 | C115: 12 | D115: 5.7
A116: 2010-06-09 | B116: Product6 | C116: 25 | D116: 6.1
A117: 2010-06-10 | B117: Product1 | C117: 13 | D117: 2.1
A118: 2010-06-11 | B118: Product6 | C118: 10 | D118: 6.2
A119: 2010-06-14 | B119: Product1 | C119: 9 | D119: 2.1
A120: 2010-06-15 | B120: Product4 | C120: 18 | D120: 4.3
A121: 2010-06-16 | B121: Product3 | C121: 24 | D121: 3.9
A122: 2010-06-17 | B122: Product9 | C122: 18 | D122: 10.1
A123: 2010-06-18 | B123: Product1 | C123: 15 | D123: 2.7
A124: 2010-06-21 | B124: Product7 | C124: 17 | D124: 5.9
A125: 2010-06-22 | B125: Product7 | C125: 25 | D125: 5.5
A126: 2010-06-23 | B126: Product3 | C126: 19 | D126: 3.1
A127: 2010-06-24 | B127: Product2 | C127: 15 | D127: 5.3
A128: 2010-06-25 | B128: Product8 | C128: 24 | D128: 8.9
A129: 2010-06-28 | B129: Product5 | C129: 10 | D129: 5.8
A130: 2010-06-29 | B130: Product8 | C130: 7 | D130: 8
A131: 2010-06-30 | B131: Product9 | C131: 17 | D131: 10.1
A132: 2010-07-01 | B132: Product7 | C132: 10 | D132: 5.5
A133: 2010-07-02 | B133: Product5 | C133: 23 | D133: 5.1
A134: 2010-07-05 | B134: Product2 | C134: 16 | D134: 5.5
A135: 2010-07-06 | B135: Product6 | C135: 23 | D135: 6.5
A136: 2010-07-07 | B136: Product5 | C136: 25 | D136: 5
A137: 2010-07-08 | B137: Product4 | C137: 8 | D137: 4.8
A138: 2010-07-09 | B138: Product6 | C138: 8 | D138: 6.9
A139: 2010-07-12 | B139: Product7 | C139: 9 | D139: 5
A140: 2010-07-13 | B140: Product3 | C140: 23 | D140: 3.7
A141: 2010-07-14 | B141: Product2 | C141: 16 | D141: 5.9
A142: 2010-07-15 | B142: Product9 | C142: 9 | D142: 10.9
A143: 2010-07-16 | B143: Product4 | C143: 20 | D143: 4.7
A144: 2010-07-19 | B144: Product4 | C144: 6 | D144: 4.7
A145: 2010-07-20 | B145: Product7 | C145: 8 | D145: 5.1
A146: 2010-07-21 | B146: Product3 | C146: 15 | D146: 3.6
A147: 2010-07-22 | B147: Product9 | C147: 11 | D147: 10.4
A148: 2010-07-23 | B148: Product5 | C148: 12 | D148: 5.2
A149: 2010-07-26 | B149: Product4 | C149: 6 | D149: 4.9
A150: 2010-07-27 | B150: Product3 | C150: 9 | D150: 3.5
A151: 2010-07-28 | B151: Product1 | C151: 21 | D151: 2.9
A152: 2010-07-29 | B152: Product4 | C152: 15 | D152: 4.2
A153: 2010-07-30 | B153: Product5 | C153: 25 | D153: 5.4
A154: 2010-08-02 | B154: Product1 | C154: 13 | D154: 2.4
A155: 2010-08-03 | B155: Product7 | C155: 8 | D155: 5.7
A156: 2010-08-04 | B156: Product6 | C156: 13 | D156: 6.2
A157: 2010-08-05 | B157: Product7 | C157: 9 | D157: 5.2
A158: 2010-08-06 | B158: Product3 | C158: 23 | D158: 3.9
A159: 2010-08-09 | B159: Product7 | C159: 20 | D159: 5.2
A160: 2010-08-10 | B160: Product6 | C160: 8 | D160: 6
A161: 2010-08-11 | B161: Product8 | C161: 21 | D161: 8.5
A162: 2010-08-12 | B162: Product9 | C162: 20 | D162: 10.5
A163: 2010-08-13 | B163: Product8 | C163: 17 | D163: 8.9
A164: 2010-08-16 | B164: Product8 | C164: 22 | D164: 8.2
A165: 2010-08-17 | B165: Product3 | C165: 7 | D165: 3.6
A166: 2010-08-18 | B166: Product7 | C166: 10 | D166: 5.9
A167: 2010-08-19 | B167: Product4 | C167: 8 | D167: 4
A168: 2010-08-20 | B168: Product7 | C168: 6 | D168: 5.9
A169: 2010-08-23 | B169: Product5 | C169: 11 | D169: 5.5
A170: 2010-08-24 | B170: Product2 | C170: 20 | D170: 5.3
A171: 2010-08-25 | B171: Product6 | C171: 10 | D171: 6.6
A172: 2010-08-26 | B172: Product7 | C172: 11 | D172: 5.2

Sheet SP(3)an
A1: For the Basics of SUMPRODUCT, see these videos: | F1: Excel Formula Efficiency 1: SUMPRODUCT function 12 Examples | N1: Rand formulas
F2: Highline Excel Class 37: SUMPRODUCT function | N2: =INDEX({"Product1";"Product2";"Product3";"Product4";"Product5";"Product6";"Product7";"Product8";"Product9"},INT(RAND()*9+1)) -> Product1 | O2: =INT(RAND()*20+6) -> 11 | P2: =VLOOKUP(N2,{"Product1",2;"Product2",5;"Product3",3;"Product4",4;"Product5",5;"Product6",6;"Product7",5;"Product8",8;"Product9",10},2)+INT(RAND()*10)/10 -> 2.2
A3: For the Basics of SUMIF, see these videos: | F3: Excel Magic Trick #203: SUMIF function formula 21 Examples
A5: Show a formula for calculating Weighted Average Cost Form Transactionl data
K6: Column Method
A7: Date | B7: Product | C7: Qrt Purchased | D7: Price Each | F7: Product | G7: WAC | I7: Must use Ctrl + Shift + Enter | K7: total | M7: Product | N7: WAC
A8: 2010-01-08 | B8: Product9 | C8: 10 | D8: 10.3 | F8: Product1 | G8: =SUMPRODUCT(--($B$8:$B$172=F8),$C$8:$C$172,$D$8:$D$172)/SUMIF($B$8:$B$172,F8,$C$8:$C$172) -> 2.378010471 | I8: =SUM(IF($B$8:$B$172=F8,$C$8:$C$172*$D$8:$D$172))/SUMIF($B$8:$B$172,F8,$C$8:$C$172) -> 2.378010471 | K8: =C8*D8 -> 103 | M8: Product1 | N8: =SUMIF($B$8:$B$172,M8,$K$8:$K$172)/SUMIF($B$8:$B$172,M8,$C$8:$C$172) -> 2.378010471
A9: 2010-01-11 | B9: Product8 | C9: 8 | D9: 8.8 | F9: Product2 | G9: 5.427304965 | I9: =SUM(IF($B$8:$B$172=F9,$C$8:$C$172*$D$8:$D$172))/SUMIF($B$8:$B$172,F9,$C$8:$C$172) -> 5.427304965 | K9: =C9*D9 -> 70.4 | M9: Product2 | N9: 5.427304965
A10: 2010-01-12 | B10: Product7 | C10: 9 | D10: 5.7 | F10: Product3 | G10: 3.545098039 | I10: =SUM(IF($B$8:$B$172=F10,$C$8:$C$172*$D$8:$D$172))/SUMIF($B$8:$B$172,F10,$C$8:$C$172) -> 3.545098039 | K10: 51.3 | M10: Product3 | N10: 3.545098039
A11: 2010-01-13 | B11: Product4 | C11: 13 | D11: 4 | F11: Product4 | G11: 4.422335025 | I11: =SUM(IF($B$8:$B$172=F11,$C$8:$C$172*$D$8:$D$172))/SUMIF($B$8:$B$172,F11,$C$8:$C$172) -> 4.422335025 | K11: 52 | M11: Product4 | N11: 4.422335025
A12: 2010-01-14 | B12: Product8 | C12: 15 | D12: 8.4 | F12: Product5 | G12: 5.518015666 | I12: =SUM(IF($B$8:$B$172=F12,$C$8:$C$172*$D$8:$D$172))/SUMIF($B$8:$B$172,F12,$C$8:$C$172) -> 5.518015666 | K12: 126 | M12: Product5 | N12: 5.518015666
A13: 2010-01-15 | B13: Product9 | C13: 12 | D13: 10 | F13: Product6 | G13: 6.364031621 | I13: =SUM(IF($B$8:$B$172=F13,$C$8:$C$172*$D$8:$D$172))/SUMIF($B$8:$B$172,F13,$C$8:$C$172) -> 6.364031621 | K13: 120 | M13: Product6 | N13: 6.364031621
A14: 2010-01-18 | B14: Product2 | C14: 22 | D14: 5.9 | F14: Product7 | G14: 5.396311475 | I14: =SUM(IF($B$8:$B$172=F14,$C$8:$C$172*$D$8:$D$172))/SUMIF($B$8:$B$172,F14,$C$8:$C$172) -> 5.396311475 | K14: 129.8 | M14: Product7 | N14: 5.396311475
A15: 2010-01-19 | B15: Product6 | C15: 23 | D15: 6.3 | F15: Product8 | G15: 8.439215686 | I15: =SUM(IF($B$8:$B$172=F15,$C$8:$C$172*$D$8:$D$172))/SUMIF($B$8:$B$172,F15,$C$8:$C$172) -> 8.439215686 | K15: 144.9 | M15: Product8 | N15: 8.439215686
A16: 2010-01-20 | B16: Product2 | C16: 24 | D16: 5.5 | F16: Product9 | G16: =SUMPRODUCT(--($B$8:$B$172=F16),$C$8:$C$172,$D$8:$D$172)/SUMIF($B$8:$B$172,F16,$C$8:$C$172) -> 10.4959854 | I16: =SUM(IF($B$8:$B$172=F16,$C$8:$C$172*$D$8:$D$172))/SUMIF($B$8:$B$172,F16,$C$8:$C$172) -> 10.4959854 | K16: 132 | M16: Product9 | N16: 10.4959854
A17: 2010-01-21 | B17: Product7 | C17: 11 | D17: 5 | K17: 55
A18: 2010-01-22 | B18: Product1 | C18: 6 | D18: 2 | K18: 12
A19: 2010-01-25 | B19: Product2 | C19: 22 | D19: 5 | K19: 110
A20: 2010-01-26 | B20: Product7 | C20: 7 | D20: 5.8 | K20: 40.6
A21: 2010-01-27 | B21: Product5 | C21: 11 | D21: 5.9 | K21: 64.9
A22: 2010-01-28 | B22: Product1 | C22: 7 | D22: 2.1 | K22: 14.7
A23: 2010-01-29 | B23: Product8 | C23: 20 | D23: 8.3 | K23: 166
A24: 2010-02-01 | B24: Product7 | C24: 14 | D24: 5.1 | K24: 71.4
A25: 2010-02-02 | B25: Product7 | C25: 22 | D25: 5.3 | K25: 116.6
A26: 2010-02-03 | B26: Product9 | C26: 9 | D26: 10.1 | K26: 90.9
A27: 2010-02-04 | B27: Product1 | C27: 10 | D27: 2 | K27: 20
A28: 2010-02-05 | B28: Product7 | C28: 13 | D28: 5.1 | K28: 66.3
A29: 2010-02-08 | B29: Product8 | C29: 20 | D29: 8 | K29: 160
A30: 2010-02-09 | B30: Product8 | C30: 10 | D30: 8.1 | K30: 81
A31: 2010-02-10 | B31: Product2 | C31: 11 | D31: 5.9 | K31: 64.9
A32: 2010-02-11 | B32: Product8 | C32: 8 | D32: 8.4 | K32: 67.2
A33: 2010-02-12 | B33: Product5 | C33: 11 | D33: 5.4 | K33: 59.4
A34: 2010-02-15 | B34: Product9 | C34: 7 | D34: 10.7 | K34: 74.9
A35: 2010-02-16 | B35: Product9 | C35: 11 | D35: 10.6 | K35: 116.6
A36: 2010-02-17 | B36: Product8 | C36: 16 | D36: 8.3 | K36: 132.8
A37: 2010-02-18 | B37: Product6 | C37: 13 | D37: 6.6 | K37: 85.8
A38: 2010-02-19 | B38: Product3 | C38: 10 | D38: 3.6 | K38: 36
A39: 2010-02-22 | B39: Product5 | C39: 17 | D39: 5.8 | K39: 98.6
A40: 2010-02-23 | B40: Product6 | C40: 14 | D40: 6.1 | K40: 85.4
A41: 2010-02-24 | B41: Product1 | C41: 15 | D41: 2 | K41: 30
A42: 2010-02-25 | B42: Product9 | C42: 7 | D42: 10.1 | K42: 70.7
A43: 2010-02-26 | B43: Product4 | C43: 9 | D43: 4.6 | K43: 41.4
A44: 2010-03-01 | B44: Product3 | C44: 10 | D44: 3.1 | K44: 31
A45: 2010-03-02 | B45: Product1 | C45: 6 | D45: 2.3 | K45: 13.8
A46: 2010-03-03 | B46: Product3 | C46: 6 | D46: 3.5 | K46: 21
A47: 2010-03-04 | B47: Product3 | C47: 8 | D47: 3 | K47: 24
A48: 2010-03-05 | B48: Product6 | C48: 24 | D48: 6.4 | K48: 153.6
A49: 2010-03-08 | B49: Product4 | C49: 23 | D49: 4.1 | K49: 94.3
A50: 2010-03-09 | B50: Product6 | C50: 25 | D50: 6.7 | K50: 167.5
A51: 2010-03-10 | B51: Product2 | C51: 10 | D51: 5.7 | K51: 57
A52: 2010-03-11 | B52: Product1 | C52: 18 | D52: 2.3 | K52: 41.4
A53: 2010-03-12 | B53: Product4 | C53: 24 | D53: 4.6 | K53: 110.4
A54: 2010-03-15 | B54: Product7 | C54: 8 | D54: 5.4 | K54: 43.2
A55: 2010-03-16 | B55: Product5 | C55: 9 | D55: 5 | K55: 45
A56: 2010-03-17 | B56: Product9 | C56: 25 | D56: 10.9 | K56: 272.5
A57: 2010-03-18 | B57: Product5 | C57: 22 | D57: 5.4 | K57: 118.8
A58: 2010-03-19 | B58: Product2 | C58: 24 | D58: 5.3 | K58: 127.2
A59: 2010-03-22 | B59: Product4 | C59: 10 | D59: 4.1 | K59: 41
A60: 2010-03-23 | B60: Product3 | C60: 9 | D60: 3.5 | K60: 31.5
A61: 2010-03-24 | B61: Product9 | C61: 24 | D61: 10.4 | K61: 249.6
A62: 2010-03-25 | B62: Product2 | C62: 8 | D62: 5.3 | K62: 42.4
A63: 2010-03-26 | B63: Product3 | C63: 18 | D63: 3.4 | K63: 61.2
A64: 2010-03-29 | B64: Product5 | C64: 25 | D64: 5.8 | K64: 145
A65: 2010-03-30 | B65: Product5 | C65: 17 | D65: 5.2 | K65: 88.4
A66: 2010-03-31 | B66: Product5 | C66: 25 | D66: 5.7 | K66: 142.5
A67: 2010-04-01 | B67: Product8 | C67: 8 | D67: 8.6 | K67: 68.8
A68: 2010-04-02 | B68: Product9 | C68: 19 | D68: 10.9 | K68: 207.1
A69: 2010-04-05 | B69: Product3 | C69: 15 | D69: 3.6 | K69: 54
A70: 2010-04-06 | B70: Product3 | C70: 17 | D70: 3.9 | K70: 66.3
A71: 2010-04-07 | B71: Product6 | C71: 15 | D71: 6 | K71: 90
A72: 2010-04-08 | B72: Product6 | C72: 11 | D72: 6.8 | K72: 74.8
A73: 2010-04-09 | B73: Product8 | C73: 16 | D73: 8.8 | K73: =C73*D73 -> 140.8
A74: 2010-04-12 | B74: Product5 | C74: 20 | D74: 5.8 | K74: 116
A75: 2010-04-13 | B75: Product6 | C75: 13 | D75: 6.5 | K75: 84.5
A76: 2010-04-14 | B76: Product1 | C76: 11 | D76: 2.5 | K76: 27.5
A77: 2010-04-15 | B77: Product6 | C77: 18 | D77: 6.1 | K77: 109.8
A78: 2010-04-16 | B78: Product2 | C78: 7 | D78: 5.1 | K78: 35.7
A79: 2010-04-19 | B79: Product2 | C79: 8 | D79: 5 | K79: 40
A80: 2010-04-20 | B80: Product9 | C80: 13 | D80: 10.5 | K80: 136.5
A81: 2010-04-21 | B81: Product8 | C81: 22 | D81: 8.2 | K81: 180.4
A82: 2010-04-22 | B82: Product7 | C82: 7 | D82: 5.1 | K82: 35.7
A83: 2010-04-23 | B83: Product1 | C83: 7 | D83: 2 | K83: 14
A84: 2010-04-26 | B84: Product4 | C84: 21 | D84: 4.5 | K84: 94.5
A85: 2010-04-27 | B85: Product8 | C85: 25 | D85: 8.8 | K85: 220
A86: 2010-04-28 | B86: Product1 | C86: 20 | D86: 2.8 | K86: 56
A87: 2010-04-29 | B87: Product3 | C87: 12 | D87: 3 | K87: 36
A88: 2010-04-30 | B88: Product9 | C88: 13 | D88: 10.6 | K88: 137.8
A89: 2010-05-03 | B89: Product4 | C89: 16 | D89: 4.7 | K89: 75.2
A90: 2010-05-04 | B90: Product9 | C90: 25 | D90: 10.8 | K90: 270
A91: 2010-05-05 | B91: Product8 | C91: 14 | D91: 8.7 | K91: 121.8
A92: 2010-05-06 | B92: Product3 | C92: 7 | D92: 3.4 | K92: 23.8
A93: 2010-05-07 | B93: Product2 | C93: 7 | D93: 5.8 | K93: 40.6
A94: 2010-05-10 | B94: Product2 | C94: 16 | D94: 5.1 | K94: 81.6
A95: 2010-05-11 | B95: Product3 | C95: 20 | D95: 3.9 | K95: 78
A96: 2010-05-12 | B96: Product5 | C96: 24 | D96: 5.7 | K96: 136.8
A97: 2010-05-13 | B97: Product8 | C97: 17 | D97: 8.2 | K97: 139.4
A98: 2010-05-14 | B98: Product9 | C98: 7 | D98: 10.5 | K98: 73.5
A99: 2010-05-17 | B99: Product5 | C99: 19 | D99: 5.4 | K99: 102.6
A100: 2010-05-18 | B100: Product7 | C100: 8 | D100: 5.2 | K100: 41.6
A101: 2010-05-19 | B101: Product3 | C101: 10 | D101: 3.5 | K101: 35
A102: 2010-05-20 | B102: Product1 | C102: 10 | D102: 2 | K102: 20
A103: 2010-05-21 | B103: Product8 | C103: 16 | D103: 8 | K103: 128
A104: 2010-05-24 | B104: Product2 | C104: 25 | D104: 5.7 | K104: 142.5
A105: 2010-05-25 | B105: Product2 | C105: 18 | D105: 5 | K105: 90
A106: 2010-05-26 | B106: Product2 | C106: 13 | D106: 5.3 | K106: 68.9
A107: 2010-05-27 | B107: Product9 | C107: 17 | D107: 10.4 | K107: 176.8
A108: 2010-05-28 | B108: Product5 | C108: 14 | D108: 5.6 | K108: 78.4
A109: 2010-05-31 | B109: Product5 | C109: 24 | D109: 5.6 | K109: 134.4
A110: 2010-06-01 | B110: Product5 | C110: 20 | D110: 5.9 | K110: 118
A111: 2010-06-02 | B111: Product3 | C111: 25 | D111: 3.3 | K111: 82.5
A112: 2010-06-03 | B112: Product1 | C112: 10 | D112: 2.6 | K112: 26
A113: 2010-06-04 | B113: Product5 | C113: 19 | D113: 5.6 | K113: 106.4
A114: 2010-06-07 | B114: Product3 | C114: 19 | D114: 3.5 | K114: 66.5
A115: 2010-06-08 | B115: Product7 | C115: 12 | D115: 5.7 | K115: 68.4
A116: 2010-06-09 | B116: Product6 | C116: 25 | D116: 6.1 | K116: 152.5
A117: 2010-06-10 | B117: Product1 | C117: 13 | D117: 2.1 | K117: 27.3
A118: 2010-06-11 | B118: Product6 | C118: 10 | D118: 6.2 | K118: 62
A119: 2010-06-14 | B119: Product1 | C119: 9 | D119: 2.1 | K119: 18.9
A120: 2010-06-15 | B120: Product4 | C120: 18 | D120: 4.3 | K120: 77.4
A121: 2010-06-16 | B121: Product3 | C121: 24 | D121: 3.9 | K121: 93.6
A122: 2010-06-17 | B122: Product9 | C122: 18 | D122: 10.1 | K122: 181.8
A123: 2010-06-18 | B123: Product1 | C123: 15 | D123: 2.7 | K123: 40.5
A124: 2010-06-21 | B124: Product7 | C124: 17 | D124: 5.9 | K124: 100.3
A125: 2010-06-22 | B125: Product7 | C125: 25 | D125: 5.5 | K125: 137.5
A126: 2010-06-23 | B126: Product3 | C126: 19 | D126: 3.1 | K126: 58.9
A127: 2010-06-24 | B127: Product2 | C127: 15 | D127: 5.3 | K127: 79.5
A128: 2010-06-25 | B128: Product8 | C128: 24 | D128: 8.9 | K128: 213.6
A129: 2010-06-28 | B129: Product5 | C129: 10 | D129: 5.8 | K129: 58
A130: 2010-06-29 | B130: Product8 | C130: 7 | D130: 8 | K130: 56
A131: 2010-06-30 | B131: Product9 | C131: 17 | D131: 10.1 | K131: 171.7
A132: 2010-07-01 | B132: Product7 | C132: 10 | D132: 5.5 | K132: 55
A133: 2010-07-02 | B133: Product5 | C133: 23 | D133: 5.1 | K133: 117.3
A134: 2010-07-05 | B134: Product2 | C134: 16 | D134: 5.5 | K134: 88
A135: 2010-07-06 | B135: Product6 | C135: 23 | D135: 6.5 | K135: 149.5
A136: 2010-07-07 | B136: Product5 | C136: 25 | D136: 5 | K136: 125
A137: 2010-07-08 | B137: Product4 | C137: 8 | D137: 4.8 | K137: =C137*D137 -> 38.4
A138: 2010-07-09 | B138: Product6 | C138: 8 | D138: 6.9 | K138: 55.2
A139: 2010-07-12 | B139: Product7 | C139: 9 | D139: 5 | K139: 45
A140: 2010-07-13 | B140: Product3 | C140: 23 | D140: 3.7 | K140: 85.1
A141: 2010-07-14 | B141: Product2 | C141: 16 | D141: 5.9 | K141: 94.4
A142: 2010-07-15 | B142: Product9 | C142: 9 | D142: 10.9 | K142: 98.1
A143: 2010-07-16 | B143: Product4 | C143: 20 | D143: 4.7 | K143: 94
A144: 2010-07-19 | B144: Product4 | C144: 6 | D144: 4.7 | K144: 28.2
A145: 2010-07-20 | B145: Product7 | C145: 8 | D145: 5.1 | K145: 40.8
A146: 2010-07-21 | B146: Product3 | C146: 15 | D146: 3.6 | K146: 54
A147: 2010-07-22 | B147: Product9 | C147: 11 | D147: 10.4 | K147: 114.4
A148: 2010-07-23 | B148: Product5 | C148: 12 | D148: 5.2 | K148: 62.4
A149: 2010-07-26 | B149: Product4 | C149: 6 | D149: 4.9 | K149: 29.4
A150: 2010-07-27 | B150: Product3 | C150: 9 | D150: 3.5 | K150: 31.5
A151: 2010-07-28 | B151: Product1 | C151: 21 | D151: 2.9 | K151: 60.9
A152: 2010-07-29 | B152: Product4 | C152: 15 | D152: 4.2 | K152: 63
A153: 2010-07-30 | B153: Product5 | C153: 25 | D153: 5.4 | K153: 135
A154: 2010-08-02 | B154: Product1 | C154: 13 | D154: 2.4 | K154: 31.2
A155: 2010-08-03 | B155: Product7 | C155: 8 | D155: 5.7 | K155: 45.6
A156: 2010-08-04 | B156: Product6 | C156: 13 | D156: 6.2 | K156: 80.6
A157: 2010-08-05 | B157: Product7 | C157: 9 | D157: 5.2 | K157: 46.8
A158: 2010-08-06 | B158: Product3 | C158: 23 | D158: 3.9 | K158: 89.7
A159: 2010-08-09 | B159: Product7 | C159: 20 | D159: 5.2 | K159: 104
A160: 2010-08-10 | B160: Product6 | C160: 8 | D160: 6 | K160: 48
A161: 2010-08-11 | B161: Product8 | C161: 21 | D161: 8.5 | K161: 178.5
A162: 2010-08-12 | B162: Product9 | C162: 20 | D162: 10.5 | K162: 210
A163: 2010-08-13 | B163: Product8 | C163: 17 | D163: 8.9 | K163: 151.3
A164: 2010-08-16 | B164: Product8 | C164: 22 | D164: 8.2 | K164: 180.4
A165: 2010-08-17 | B165: Product3 | C165: 7 | D165: 3.6 | K165: 25.2
A166: 2010-08-18 | B166: Product7 | C166: 10 | D166: 5.9 | K166: 59
A167: 2010-08-19 | B167: Product4 | C167: 8 | D167: 4 | K167: 32
A168: 2010-08-20 | B168: Product7 | C168: 6 | D168: 5.9 | K168: 35.4
A169: 2010-08-23 | B169: Product5 | C169: 11 | D169: 5.5 | K169: 60.5
A170: 2010-08-24 | B170: Product2 | C170: 20 | D170: 5.3 | K170: 106
A171: 2010-08-25 | B171: Product6 | C171: 10 | D171: 6.6 | K171: 66
A172: 2010-08-26 | B172: Product7 | C172: 11 | D172: 5.2 | K172: 57.2

Sheet IF & AND & OR & IS
A2: Here is a list of what a cell can contain: TEXT, NUMBER, TRUE or FALSE, Blank cell, FORMULA, Blank from formula, error from formula
A3: ="TRUE FALSE logic formulas in Excel like: ="&ADDRESS(ROW(B23),COLUMN(B23),4)&"="&ADDRESS(ROW(C23),COLUMN(C23),4)&". This formula asks the question is the content of "&ADDRESS(ROW(B23),COLUMN(B23),4)&" the same as "&ADDRESS(ROW(C23),COLUMN(C23),4)&"? The answer is "&TEXT(B23=C23,"0")&" because "&B23&" "&IF(B23=C23,"=","<>")&" "&C23&". Case in words is not considered. For example Case = case is TRUE to Excel." -> TRUE FALSE logic formulas in Excel like: =B23=C23. This formula asks the question is the content of B23 the same as C23? The answer is FALSE because 15 <> 15.1. Case in words is not considered. For example Case = case is TRUE to Excel.
A4: Comparative Operators: =, <>, >, >=, <, <=
A5: AND function (2 up to 255 logical tests that all must be TRUE for the AND function to deliver a TRUE to the cell or formula)
A6: OR function (2 up to 255 logical tests that if at least one is TRUE then the OR function delivers a TRUE to the cell or formula)
A7: NOT function converts TRUE to FALSE and FALSE to TRUE
A8: ="IS functions deliver a TRUE or FALSE to a cell or formula. These are some IS functions: "&A38&", "&A40&", "&A42&", "&A43&", "&A44&", "&A47 -> IS functions deliver a TRUE or FALSE to a cell or formula. These are some IS functions: ISTEXT function, ISNUMBER function, ISLOGICAL function, ISBLANK function, ISERROR function, ISNONTEXT function
A9: IF function can put one of two things in a cell. The IF function has three parts: 1) Logical Test, 2) Value If True, 3) Value If False
A10: IFERROR function looks to see if there is an error from a formula. If there is an error it puts something in the cell, otherwise it lets the formula calculate.
A13: Logic, TRUE FALSE formulas, IS & IF functions
A15: List of what can go in a cell
A16: TEXT | B16: rad
A17: NUMBER | B17: 4.23
A18: TRUE | B18: TRUE
A19: FALSE | B19: FALSE
A20: Error from formula | B20: =B17/0 -> 
A22: Logical Question | B22: No. | C22: No. | D22: Logical Formula | E22: Comparative Operator | F22: Comparative Operator
A23: ="Is "&B23&E23&C23&"?" -> Is 15=15.1? | B23: 15 | C23: 15.1 | D23: =B23=C23 -> FALSE | E23: = | F23: Equal
A24: Is 15<>15.1? | B24: 15 | C24: 15.1 | D24: =B24<>C24 -> TRUE | E24: <> | F24: Not Equal
A25: Is 15>15? | B25: 15 | C25: 15 | D25: =B25>C25 -> FALSE | E25: > | F25: Great Than
A26: Is 15>=15? | B26: 15 | C26: 15 | D26: =B26>=C26 -> TRUE | E26: >= | F26: Greater Than Or Equal To
A27: Is 15<15? | B27: 15 | C27: 15 | D27: =B27<C27 -> FALSE | E27: < | F27: Less Than
A28: Is 15<=15? | B28: 15 | C28: 15 | D28: =B28<=C28 -> TRUE | E28: <= | F28: Less Than Or Equal To
A31: Customer Credit Score | B31: 3
A32: Customer Last Year Sales | B32: 500000
A33: Company Credit Score Hurdle | B33: 3
A34: Company Last Year Sales Hurdle | B34: 1000000
A35: Rule 1: We have two logical tests and both must be met before we extend credit: AND function | C35: AND
A36: Rule 2: We have two logical tests and "one or the other or both" (also said in this way; 'at least one') can be met before we extend credit: OR function | C36: OR
A38: ISTEXT function | B38: rad | C38: =ISTEXT(B38) -> TRUE | D38: =ISTEXT(B38) -> TRUE | E38: Value refers to text.
A39: ISTEXT function | B39: 23 | C39: =ISTEXT(B39) -> FALSE | D39: =ISTEXT(B39) -> FALSE
A40: ISNUMBER function | B40: 12 | C40: =ISNUMBER(B40) -> TRUE | D40: =ISNUMBER(B40) -> TRUE | E40: Value refers to a number.
A41: ISNUMBER function | B41: Rad | C41: =ISNUMBER(B41) -> FALSE | D41: =ISNUMBER(B41) -> FALSE
A42: ISLOGICAL function | B42: TRUE | C42: =ISLOGICAL(B42) -> TRUE | D42: =ISLOGICAL(B42) -> TRUE | E42: Value refers to a logical value.
A43: ISBLANK function | C43: =ISBLANK(B43) -> TRUE | D43: =ISBLANK(B43) -> TRUE | E43: Value refers to an empty cell.
A44: ISERROR function | B44: =#REF! ->  | C44: =ISERROR(B44) -> TRUE | D44: =ISERROR(B44) -> TRUE | E44: Value refers to any error value (#N/A, #VALUE!, #REF!, #DIV/0!, #NUM!, #NAME?, or #NULL!).
A45: ISERR function | C45: =ISERR(B45) -> FALSE | D45: =ISERR(B45) -> FALSE | E45: Value refers to any error value except #N/A.
A46: ISNA function | C46: =ISNA(B46) -> TRUE | D46: =ISNA(B46) -> TRUE | E46: Value refers to the #N/A (value not available) error value.
A47: ISNONTEXT function | B47: Excel | C47: =ISNONTEXT(B47) -> FALSE | D47: =ISNONTEXT(B47) -> FALSE | E47: Value refers to any item that is not text. (Note that this function returns TRUE if value refers to a blank cell.)
A49: IF function can put one of two things in a cell. The IF function has three parts: 1) Logical Test 2) Value If True 3) Value If False. For the 'Value If True' and 'Value If False', you can put numbers, text (must be in double quotes), formulas, or cell ranges
A51: This example puts one of two words (text) into a cell
A52: Big List | B52: Text or Number Formula 1 | C52: Text or Number Formula 2
A53: word1
A54: 12
A55: word3
A56: word4
A57: 5896
A58: word6
A59: word7
A61: This example puts one of two numbers into a cell
A62: Your Sales For Month | B62: 6000
A63: Do you get a bonus?
A64: ="You get Bonus if you sell "&DOLLAR(B65)&" or more" -> You get Bonus if you sell $6,000.00 or more
A65: Bonus Hurdle | B65: 6000
A66: Bonus Amount | B66: 200
A67: Your Bonus = | B67: =IF(B62>=B65,B66,0) -> 200
A69: Put 1 of 2 Formulas in a cell
A70: Revenues | B70: 6
A71: Expenses | B71: 6000
A72: =IF(B70>=B71,"Net Income","Net Loss") -> Net Loss
A74: Conditional Formatting (Home Ribbon in 2007, Format menu in 2003) uses Logical Formulas

Sheet IF & AND & OR & IS (2)
A2: Here is a list of what a cell can contain: TEXT, NUMBER, TRUE or FALSE, Blank cell, FORMULA, Blank from formula, error from formula
A3: ="TRUE FALSE logic formulas in Excel like: ="&ADDRESS(ROW(B23),COLUMN(B23),4)&"="&ADDRESS(ROW(C23),COLUMN(C23),4)&". This formula asks the question is the content of "&ADDRESS(ROW(B23),COLUMN(B23),4)&" the same as "&ADDRESS(ROW(C23),COLUMN(C23),4)&"? The answer is "&TEXT(B23=C23,"0")&" because "&B23&" "&IF(B23=C23,"=","<>")&" "&C23&". Case in words is not considered. For example Case = case is TRUE to Excel." -> TRUE FALSE logic formulas in Excel like: =B23=C23. This formula asks the question is the content of B23 the same as C23? The answer is FALSE because 15 <> 15.1. Case in words is not considered. For example Case = case is TRUE to Excel.
A4: Comparative Operators: =, <>, >, >=, <, <=
A5: AND function (2 up to 255 logical tests that all must be TRUE for the AND function to deliver a TRUE to the cell or formula)
A6: OR function (2 up to 255 logical tests that if at least one is TRUE then the OR function delivers a TRUE to the cell or formula)
A7: NOT function converts TRUE to FALSE and FALSE to TRUE
A8: ="IS functions deliver a TRUE or FALSE to a cell or formula. These are some IS functions: "&A38&", "&A40&", "&A42&", "&A43&", "&A44&", "&A47 -> IS functions deliver a TRUE or FALSE to a cell or formula. These are some IS functions: ISTEXT function, ISNUMBER function, ISLOGICAL function, ISBLANK function, ISERROR function, ISNONTEXT function
A9: IF function can put one of two things in a cell. The IF function has three parts: 1) Logical Test, 2) Value If True, 3) Value If False
A10: IFERROR function looks to see if there is an error from a formula. If there is an error it puts something in the cell, otherwise it lets the formula calculate.
A13: Logic, TRUE FALSE formulas, IS & IF functions
A15: List of what can go in a cell
A16: TEXT | B16: rad
A17: NUMBER | B17: 4.23
A18: TRUE | B18: TRUE
A19: FALSE | B19: FALSE
A20: Error from formula | B20: =B17/0 -> 
A22: Logical Question | B22: No. | C22: No. | D22: Logical Formula | E22: Comparative Operator | F22: Comparative Operator
A23: ="Is "&B23&E23&C23&"?" -> Is 15=15.1? | B23: 15 | C23: 15.1 | D23: =B23=C23 -> FALSE | E23: = | F23: Equal
A24: Is 15<>15.1? | B24: 15 | C24: 15.1 | D24: =B24<>C24 -> TRUE | E24: <> | F24: Not Equal
A25: Is 15>15? | B25: 15 | C25: 15 | D25: =B25>C25 -> FALSE | E25: > | F25: Great Than
A26: Is 15>=15? | B26: 15 | C26: 15 | D26: =B26>=C26 -> TRUE | E26: >= | F26: Greater Than Or Equal To
A27: Is 15<15? | B27: 15 | C27: 15 | D27: =B27<C27 -> FALSE | E27: < | F27: Less Than
A28: Is 15<=15? | B28: 15 | C28: 15 | D28: =B28<=C28 -> TRUE | E28: <= | F28: Less Than Or Equal To
A31: Customer Credit Score | B31: 3
A32: Customer Last Year Sales | B32: 500000
A33: Company Credit Score Hurdle | B33: 3
A34: Company Last Year Sales Hurdle | B34: 1000000
A35: Rule 1: We have two logical tests and both must be met before we extend credit: AND function | B35: =AND(B31>=B33,B32>=B34) -> FALSE | C35: AND
A36: Rule 2: We have two logical tests and "one or the other or both" (also said in this way; 'at least one') can be met before we extend credit: OR function | B36: =OR(B31>=B33,B32>=B34) -> TRUE | C36: OR
A38: ISTEXT function | B38: rad | C38: =ISTEXT(B38) -> TRUE | D38: =ISTEXT(B38) -> TRUE | E38: Value refers to text.
A39: ISTEXT function | B39: 23 | C39: =ISTEXT(B39) -> FALSE | D39: =ISTEXT(B39) -> FALSE
A40: ISNUMBER function | B40: 12 | C40: =ISNUMBER(B40) -> TRUE | D40: =ISNUMBER(B40) -> TRUE | E40: Value refers to a number.
A41: ISNUMBER function | B41: Rad | C41: =ISNUMBER(B41) -> FALSE | D41: =ISNUMBER(B41) -> FALSE
A42: ISLOGICAL function | B42: TRUE | C42: =ISLOGICAL(B42) -> TRUE | D42: =ISLOGICAL(B42) -> TRUE | E42: Value refers to a logical value.
A43: ISBLANK function | C43: =ISBLANK(B43) -> TRUE | D43: =ISBLANK(B43) -> TRUE | E43: Value refers to an empty cell.
A44: ISERROR function | B44: =#REF! ->  | C44: =ISERROR(B44) -> TRUE | D44: =ISERROR(B44) -> TRUE | E44: Value refers to any error value (#N/A, #VALUE!, #REF!, #DIV/0!, #NUM!, #NAME?, or #NULL!).
A45: ISERR function | C45: =ISERR(B45) -> FALSE | D45: =ISERR(B45) -> FALSE | E45: Value refers to any error value except #N/A.
A46: ISNA function | C46: =ISNA(B46) -> TRUE | D46: =ISNA(B46) -> TRUE | E46: Value refers to the #N/A (value not available) error value.
A47: ISNONTEXT function | B47: Excel | C47: =ISNONTEXT(B47) -> FALSE | D47: =ISNONTEXT(B47) -> FALSE | E47: Value refers to any item that is not text. (Note that this function returns TRUE if value refers to a blank cell.)
A49: IF function can put one of two things in a cell. The IF function has three parts: 1) Logical Test 2) Value If True 3) Value If False. For the 'Value If True' and 'Value If False', you can put numbers, text (must be in double quotes), formulas, or cell ranges
A51: This example puts one of two words (text) into a cell
A52: Big List | B52: Text or Number Formula 1 | C52: Text or Number Formula 2
A53: word1 | B53: =IF(ISTEXT(A53),"Text","Number") -> Text | C53: =IF(ISNUMBER(A53),"Number","Text") -> Text
A54: 12 | B54: =IF(ISTEXT(A54),"Text","Number") -> Number | C54: =IF(ISNUMBER(A54),"Number","Text") -> Number
A55: word3 | B55: Text | C55: Text
A56: word4 | B56: Text | C56: Text
A57: 5896 | B57: Number | C57: Number
A58: word6 | B58: Text | C58: Text
A59: word7 | B59: Text | C59: Text
A61: This example puts one of two numbers into a cell
A62: Your Sales For Month | B62: 6000
A63: Do you get a bonus?
A64: ="You get Bonus if you sell "&DOLLAR(B65)&" or more" -> You get Bonus if you sell $6,000.00 or more
A65: Bonus Hurdle | B65: 6000
A66: Bonus Amount | B66: 200
A67: Your Bonus = | B67: =IF(B62>=B65,B66,0) -> 200
A69: Put 1 of 2 Formulas in a cell
A70: Revenues | B70: 6
A71: Expenses | B71: 6000
A72: =IF(B70>=B71,"Net Income","Net Loss") -> Net Loss | B72: =IF(B70>=B71,B70-B71,B71-B70) -> 5994
A74: Conditional Formatting (Home Ribbon in 2007, Format menu in 2003) uses Logical Formulas

Sheet CreditAnalysis
A1: Rule 1 | B1: ="Account Not Suspended, No Overdue Balance and Last Year's Sales > "&DOLLAR(F6)&"" -> Account Not Suspended, No Overdue Balance and Last Year's Sales > $50,000.00
A2: Rule 2 | B2: Account Not Suspended and Both Credit Hurdles must be met and at least 1 of the remaining criteria must be met
A4: Formula Inputs
A5: Customer Name | B5: Account Suspended? | C5: Rating1 Hurdle | D5: Rating2 Hurdle | E5: Asset Value | F5: Last Year's Sales | G5: Over Due Balance
B6: Yes | C6: 2.5 | D6: 4.5 | E6: 200000 | F6: 50000 | G6: Yes
A8: Customer Credit Analysis For Accounts Receivable
A9: =A5 -> Customer Name | B9: Account Suspended? | C9: Rating1 Hurdle | D9: Rating2 Hurdle | E9: Asset Value | F9: Last Year's Sales | G9: Over Due Balance | H9: =A1&CHAR(10)&B1 -> Rule 1 Account Not Suspended, No Overdue Balance and Last Year's Sales > $50,000.00 | I9: =A2&CHAR(10)&B2 -> Rule 2 Account Not Suspended and Both Credit Hurdles must be met and at least 1 of the remaining criteria must be met
A10: Cust01 | C10: 5 | D10: 7.4 | E10: 208339 | F10: 90550
A11: Cust02 | C11: 5 | D11: 5.9 | E11: 374775 | F11: 51255 | G11: Yes
A12: Cust03 | C12: 3.3 | D12: 3.9 | E12: 371040 | F12: 56241
A13: Cust04 | B13: Yes | C13: 1.2 | D13: 2.4 | E13: 331439 | F13: 69920
A14: Cust05 | B14: Yes | C14: 3.4 | D14: 5.3 | E14: 336505 | F14: 58534 | G14: Yes
A15: Cust06 | C15: 4.5 | D15: 6 | E15: 336794 | F15: 60423 | G15: Yes
A16: Cust07 | C16: 4.4 | D16: 2.4 | E16: 500000 | F16: 49850
A17: Cust08 | C17: 2.9 | D17: 5.5 | E17: 375800 | F17: 62100
A18: Cust09 | C18: 2.5 | D18: 8.9 | E18: 254888 | F18: 75000

Sheet CreditAnalysis (2)
A1: Rule 1 | B1: ="Account Not Suspended, No Overdue Balance and Last Year's Sales > "&DOLLAR(F6)&"" -> Account Not Suspended, No Overdue Balance and Last Year's Sales > $50,000.00
A2: Rule 2 | B2: Account Not Suspended and Both Credit Hurdles must be met and at least 1 of the remaining criteria must be met
A4: Formula Inputs
A5: Customer Name | B5: Account Suspended? | C5: Rating1 Hurdle | D5: Rating2 Hurdle | E5: Asset Value | F5: Last Year's Sales | G5: Over Due Balance
B6: Yes | C6: 2.5 | D6: 4.5 | E6: 200000 | F6: 50000 | G6: Yes
A8: Customer Credit Analysis For Accounts Receivable
A9: =A5 -> Customer Name | B9: Account Suspended? | C9: Rating1 Hurdle | D9: Rating2 Hurdle | E9: Asset Value | F9: Last Year's Sales | G9: Over Due Balance | H9: =A1&CHAR(10)&B1 -> Rule 1 Account Not Suspended, No Overdue Balance and Last Year's Sales > $50,000.00 | I9: =A2&CHAR(10)&B2 -> Rule 2 Account Not Suspended and Both Credit Hurdles must be met and at least 1 of the remaining criteria must be met
A10: Cust01 | C10: 5 | D10: 7.4 | E10: 208339 | F10: 90550 | H10: =AND(B10<>B$6,G10<>G$6,F10>F$6) -> TRUE | I10: =AND(AND(B10<>B$6,C10>=C$6,D10>=D$6),OR(E10>=E$6,F10>=F$6,G10<>G$6)) -> TRUE
A11: Cust02 | C11: 5 | D11: 5.9 | E11: 374775 | F11: 51255 | G11: Yes | H11: FALSE | I11: =AND(AND(B11<>B$6,C11>=C$6,D11>=D$6),OR(E11>=E$6,F11>=F$6,G11<>G$6)) -> TRUE
A12: Cust03 | C12: 3.3 | D12: 3.9 | E12: 371040 | F12: 56241 | H12: TRUE | I12: FALSE
A13: Cust04 | B13: Yes | C13: 1.2 | D13: 2.4 | E13: 331439 | F13: 69920 | H13: FALSE | I13: FALSE
A14: Cust05 | B14: Yes | C14: 3.4 | D14: 5.3 | E14: 336505 | F14: 58534 | G14: Yes | H14: FALSE | I14: FALSE
A15: Cust06 | C15: 4.5 | D15: 6 | E15: 336794 | F15: 60423 | G15: Yes | H15: FALSE | I15: TRUE
A16: Cust07 | C16: 4.4 | D16: 2.4 | E16: 500000 | F16: 49850 | H16: FALSE | I16: FALSE
A17: Cust08 | C17: 2.9 | D17: 5.5 | E17: 375800 | F17: 62100 | H17: TRUE | I17: TRUE
A18: Cust09 | C18: 2.5 | D18: 8.9 | E18: 254888 | F18: 75000 | H18: TRUE | I18: TRUE

Sheet V(1)
A1: Example 1: Lookup Exact Value
A2: SalesRep | B2: Commission Rate | D2: SalesRep | E2: Sales | F2: Commission Rate | G2: Commission | H2: 1 Formula Commission
A3: Sioux | B3: 0.05 | D3: Sioux | E3: 5356 | F3: =VLOOKUP(D3,$A$3:$B$5,2,0) -> 0.05 | G3: =E3*F3 -> 267.8 | H3: =VLOOKUP(D3,$A$3:$B$5,2,0)*E3 -> 267.8
A4: Chin | B4: 0.065 | D4: Chin | E4: 6083 | F4: =VLOOKUP(D4,$A$3:$B$5,2,0) -> 0.065 | G4: =E4*F4 -> 395.395 | H4: =VLOOKUP(D4,$A$3:$B$5,2,0)*E4 -> 395.395
A5: Twinette | B5: 0.0755 | D5: Twinette | E5: 5899 | F5: 0.0755 | G5: 445.3745 | H5: 445.3745
D6: Sioux | E6: 3316 | F6: 0.05 | G6: 165.8 | H6: 165.8
D7: Chin | E7: 2014 | F7: 0.065 | G7: 130.91 | H7: 130.91
D8: Twinette | E8: 3116 | F8: 0.0755 | G8: 235.258 | H8: 235.258
D9: Chin | E9: 2950 | F9: 0.065 | G9: 191.75 | H9: 191.75
D10: Twinette | E10: 3690 | F10: 0.0755 | G10: 278.595 | H10: 278.595
D11: Chin | E11: 4184 | F11: 0.065 | G11: 271.96 | H11: 271.96
D12: Chin | E12: 6472 | F12: 0.065 | G12: 420.68 | H12: 420.68
A14: Example 2: Lookup Approximate Value
A15: Sales | B15: Commission Rate | C15: Category | D15: SalesRep | E15: Sales | F15: Commission Rate | G15: Commission | H15: 1 Formula Commission
A16: 0 | B16: 0 | C16: =A16&" <= Sales < "&A17 -> 0 <= Sales < 1500 | D16: Sioux | E16: 5356 | F16: =VLOOKUP(E16,$A$17:$B$19,2,1) -> 0.065 | G16: =E16*F16 -> 348.14 | H16: =VLOOKUP(E16,$A$17:$B$19,2,1)*E16 -> 348.14
A17: 1500 | B17: 0.05 | C17: =A17&" <= Sales < "&A18 -> 1500 <= Sales < 5000 | D17: Chin | E17: 6083 | F17: 0.0755 | G17: =E17*F17 -> 459.2665 | H17: 459.2665
A18: 5000 | B18: 0.065 | C18: =A18&" <= Sales < "&A19 -> 5000 <= Sales < 6000 | D18: Twinette | E18: 5899 | F18: 0.065 | G18: 383.435 | H18: 383.435
A19: 6000 | B19: 0.0755 | C19: =A19&" <= Sales " -> 6000 <= Sales | D19: Sioux | E19: 3316 | F19: 0.05 | G19: 165.8 | H19: 165.8
D20: Chin | E20: 2014 | F20: 0.05 | G20: 100.7 | H20: 100.7
D21: Twinette | E21: 3116 | F21: 0.05 | G21: 155.8 | H21: 155.8
D22: Chin | E22: 2950 | F22: 0.05 | G22: 147.5 | H22: 147.5
D23: Twinette | E23: 3690 | F23: 0.05 | G23: 184.5 | H23: 184.5
D24: Chin | E24: 4184 | F24: 0.05 | G24: 209.2 | H24: 209.2
D25: Chin | E25: 6472 | F25: 0.0755 | G25: 488.636 | H25: 488.636

Sheet V(1)an
A1: Example 1: Lookup Exact Value
A2: SalesRep | B2: Commission Rate | D2: SalesRep | E2: Sales | F2: Commission Rate | G2: Commission | H2: 1 Formula Commission
A3: Sioux | B3: 0.05 | D3: Sioux | E3: 5356 | F3: =VLOOKUP(D3,$A$3:$B$5,2,0) -> 0.05 | G3: =E3*F3 -> 267.8 | H3: =VLOOKUP(D3,$A$3:$B$5,2,0)*E3 -> 267.8
A4: Chin | B4: 0.065 | D4: Chin | E4: 6083 | F4: =VLOOKUP(D4,$A$3:$B$5,2,0) -> 0.065 | G4: =E4*F4 -> 395.395 | H4: =VLOOKUP(D4,$A$3:$B$5,2,0)*E4 -> 395.395
A5: Twinette | B5: 0.0755 | D5: Twinette | E5: 5899 | F5: 0.0755 | G5: 445.3745 | H5: 445.3745
D6: Sioux | E6: 3316 | F6: 0.05 | G6: 165.8 | H6: 165.8
D7: Chin | E7: 2014 | F7: 0.065 | G7: 130.91 | H7: 130.91
D8: Twinette | E8: 3116 | F8: 0.0755 | G8: 235.258 | H8: 235.258
D9: Chin | E9: 2950 | F9: 0.065 | G9: 191.75 | H9: 191.75
D10: Twinette | E10: 3690 | F10: 0.0755 | G10: 278.595 | H10: 278.595
D11: Chin | E11: 4184 | F11: 0.065 | G11: 271.96 | H11: 271.96
D12: Chin | E12: 6472 | F12: 0.065 | G12: 420.68 | H12: 420.68
A14: Example 2: Lookup Approximate Value
A15: Sales | B15: Commission Rate | C15: Category | D15: SalesRep | E15: Sales | F15: Commission Rate | G15: Commission | H15: 1 Formula Commission
A16: 0 | B16: 0 | C16: =A16&" <= Sales < "&A17 -> 0 <= Sales < 1500 | D16: Sioux | E16: 5356 | F16: =VLOOKUP(E16,$A$17:$B$19,2,1) -> 0.065 | G16: =E16*F16 -> 348.14 | H16: =VLOOKUP(E16,$A$17:$B$19,2,1)*E16 -> 348.14
A17: 1500 | B17: 0.05 | C17: =A17&" <= Sales < "&A18 -> 1500 <= Sales < 5000 | D17: Chin | E17: 6083 | F17: 0.0755 | G17: =E17*F17 -> 459.2665 | H17: 459.2665
A18: 5000 | B18: 0.065 | C18: =A18&" <= Sales < "&A19 -> 5000 <= Sales < 6000 | D18: Twinette | E18: 5899 | F18: 0.065 | G18: 383.435 | H18: 383.435
A19: 6000 | B19: 0.0755 | C19: =A19&" <= Sales " -> 6000 <= Sales | D19: Sioux | E19: 3316 | F19: 0.05 | G19: 165.8 | H19: 165.8
D20: Chin | E20: 2014 | F20: 0.05 | G20: 100.7 | H20: 100.7
D21: Twinette | E21: 3116 | F21: 0.05 | G21: 155.8 | H21: 155.8
D22: Chin | E22: 2950 | F22: 0.05 | G22: 147.5 | H22: 147.5
D23: Twinette | E23: 3690 | F23: 0.05 | G23: 184.5 | H23: 184.5
D24: Chin | E24: 4184 | F24: 0.05 | G24: 209.2 | H24: 209.2
D25: Chin | E25: 6472 | F25: 0.0755 | G25: 488.636 | H25: 488.636

Sheet V(2)
A1: Use COLUMNS function to tell VLOOKUP which column to lookup
A2: Using named ranges for lookup table is usually efficient (highlight range, click in Name Box, type name, hit Enter). Using Data Validation List helps the accuracy of your task (Alt + D + L is keyboard shortcut).
A3: COLUMNS function tells you how many columns there are in a range.
A4: VLOOKUP, Named Ranges, Exact Match = 0, COLUMNS & Data Validation List
A5: =A8 -> Name | B5: Test 01 | C5: Test 02 | D5: Test 03 | E5: Test 04 | F5: Test 05
A6: Tu Pham | B6: =VLOOKUP($A6,GradeTable,COLUMNS($A6:B6),0) -> 58 | C6: =VLOOKUP($A6,GradeTable,COLUMNS($A6:C6),0) -> 43 | D6: =VLOOKUP($A6,GradeTable,COLUMNS($A6:D6),0) -> 77 | E6: =VLOOKUP($A6,GradeTable,COLUMNS($A6:E6),0) -> 41 | F6: =VLOOKUP($A6,GradeTable,COLUMNS($A6:F6),0) -> 32
A8: Name | B8: Test 01 | C8: Test 02 | D8: Test 03 | E8: Test 04 | F8: Test 05
A9: Siuox RadCool | B9: 94 | C9: 0 | D9: 7 | E9: 4 | F9: 53
A10: Dina Kim | B10: 38 | C10: 48 | D10: 52 | E10: 71 | F10: 16
A11: Dennis Ho | B11: 67 | C11: 99 | D11: 60 | E11: 54 | F11: 7
A12: Tu Pham | B12: 58 | C12: 43 | D12: 77 | E12: 41 | F12: 32
A13: Fred Tap | B13: 43 | C13: 93 | D13: 3 | E13: 85 | F13: 60

Sheet V(2)an
A1: Use COLUMNS function to tell VLOOKUP which column to lookup
A2: Using named ranges for lookup table is usually efficient (highlight range, click in Name Box, type name, hit Enter). Using Data Validation List helps the accuracy of your task (Alt + D + L is keyboard shortcut).
A3: COLUMNS function tells you how many columns there are in a range.
A4: VLOOKUP, Named Ranges, Exact Match = 0, COLUMNS & Data Validation List
A5: =A8 -> Name | B5: Test 01 | C5: Test 02 | D5: Test 03 | E5: Test 04 | F5: Test 05
A6: Tu Pham
A8: Name | B8: Test 01 | C8: Test 02 | D8: Test 03 | E8: Test 04 | F8: Test 05
A9: Siuox RadCool | B9: 94 | C9: 0 | D9: 7 | E9: 4 | F9: 53
A10: Dina Kim | B10: 38 | C10: 48 | D10: 52 | E10: 71 | F10: 16
A11: Dennis Ho | B11: 67 | C11: 99 | D11: 60 | E11: 54 | F11: 7
A12: Tu Pham | B12: 58 | C12: 43 | D12: 77 | E12: 41 | F12: 32
A13: Fred Tap | B13: 43 | C13: 93 | D13: 3 | E13: 85 | F13: 60

Sheet V(3)
A1: VLOOKUP, Approximate = omitted, 3 VLOOKUPS in one formula
A2: Sales | B2: Commission Paid | F2: $55,000 check 1 | G2: $55,000 check 2
A3: 55000 | F3: =D12+(A3-B12)*C12 -> 1225 | G3: =(B8-B7)*C7+(B9-B8)*C8+(B10-B9)*C9+(B11-B10)*C10+(B12-B11)*C11+(A3-B12)*C12 -> 1225
A5: Commission Table
A6: Category | B6: Sales | C6: Rate | D6: Commission from Previous Bracket
A7: =DOLLAR(B7)&" <= "&B$6&" < "&DOLLAR(B8) -> $0.00 <= Sales < $5,000.00 | B7: 0 | C7: 0
A8: $5,000.00 <= Sales < $10,000.00 | B8: 5000 | C8: 0.005 | D8: 0
A9: $10,000.00 <= Sales < $20,000.00 | B9: 10000 | C9: 0.01 | D9: =(B9-B8)*C8+D8 -> 25
A10: $20,000.00 <= Sales < $30,000.00 | B10: 20000 | C10: 0.02 | D10: =(B10-B9)*C9+D9 -> 125
A11: $30,000.00 <= Sales < $50,000.00 | B11: 30000 | C11: 0.03 | D11: =(B11-B10)*C10+D10 -> 325
A12: $50,000.00 <= Sales < $100,000.00 | B12: 50000 | C12: 0.06 | D12: =(B12-B11)*C11+D11 -> 925
A13: =DOLLAR(B13)&" <= "&B$6 -> $100,000.00 <= Sales | B13: 100000 | C13: 0.1 | D13: =(B13-B12)*C12+D12 -> 3925

Sheet V(3)an
A1: VLOOKUP, Approximate = omitted, 3 VLOOKUPS in one formula
A2: Sales | B2: Commission Paid | F2: $55,000 check 1 | G2: $55,000 check 2
A3: 55000 | B3: =VLOOKUP(A3,B7:D13,3)+(A3-VLOOKUP(A3,B7:D13,1))*VLOOKUP(A3,B7:D13,2) -> 1225 | F3: =D12+(A3-B12)*C12 -> 1225 | G3: =(B8-B7)*C7+(B9-B8)*C8+(B10-B9)*C9+(B11-B10)*C10+(B12-B11)*C11+(A3-B12)*C12 -> 1225
A5: Commission Table
A6: Category | B6: Sales | C6: Rate | D6: Commission from Previous Bracket
A7: =DOLLAR(B7)&" <= "&B$6&" < "&DOLLAR(B8) -> $0.00 <= Sales < $5,000.00 | B7: 0 | C7: 0
A8: $5,000.00 <= Sales < $10,000.00 | B8: 5000 | C8: 0.005 | D8: 0
A9: $10,000.00 <= Sales < $20,000.00 | B9: 10000 | C9: 0.01 | D9: =(B9-B8)*C8+D8 -> 25
A10: $20,000.00 <= Sales < $30,000.00 | B10: 20000 | C10: 0.02 | D10: =(B10-B9)*C9+D9 -> 125
A11: $30,000.00 <= Sales < $50,000.00 | B11: 30000 | C11: 0.03 | D11: =(B11-B10)*C10+D10 -> 325
A12: $50,000.00 <= Sales < $100,000.00 | B12: 50000 | C12: 0.06 | D12: =(B12-B11)*C11+D11 -> 925
A13: =DOLLAR(B13)&" <= "&B$6 -> $100,000.00 <= Sales | B13: 100000 | C13: 0.1 | D13: =(B13-B12)*C12+D12 -> 3925

Sheet V(4)
A1: =ROW()&")" -> 1) | B1: VLOOKUP (Exact match = 0) function and the Ampersand, &, can be used together to create a new text item
A2: =ROW()&")" -> 2) | B2: Hiding a column temporarily will allow you to use the "Double-click the fill handle" trick
B4: Data Dump | G4: Our System
B5: Type | C5: Sales | D5: Customer | E5: Our Type | G5: Type | H5: Number
B6: Kite | C6: 1221 | D6: Yuliya | G6: Kite | H6: 5560
B7: Boom | C7: 1101 | D7: Yuliya | G7: Boom | H7: 5590
B8: Kite | C8: 1451 | D8: Yuliya | G8: Toy | H8: 5510
B9: Toy | C9: 1293 | D9: Megan | G9: Other | H9: 5540
B10: Kite | C10: 1950 | D10: Rasik
B11: Toy | C11: 1956 | D11: Joel
B12: Other | C12: 1163 | D12: Rasik
B13: Boom | C13: 1177 | D13: Rasik
B14: Other | C14: 1105 | D14: Igor
B15: Kite | C15: 1797 | D15: Megan
B16: Boom | C16: 1692 | D16: Debbie
B17: Kite | C17: 1874 | D17: Wendy
B18: Boom | C18: 1565 | D18: Olga
B19: Boom | C19: 1274 | D19: Igor
B20: Boom | C20: 1133 | D20: Igor
B21: Other | C21: 1687 | D21: Olga
B22: Boom | C22: 1083 | D22: Igor
B23: Kite | C23: 1094 | D23: Suix
B24: Boom | C24: 1146 | D24: Joel
B25: Toy | C25: 1776 | D25: Al
B26: Other | C26: 1985 | D26: Al
B27: Other | C27: 1334 | D27: Debbie
B28: Toy | C28: 1602 | D28: Yuliya
B29: Kite | C29: 1163 | D29: Al
B30: Toy | C30: 1715 | D30: Joel
B31: Boom | C31: 1155 | D31: Rasik
B32: Toy | C32: 1330 | D32: Igor
B33: Other | C33: 1972 | D33: Debbie
B34: Toy | C34: 1728 | D34: Suix
B35: Other | C35: 1698 | D35: Yuliya
B36: Kite | C36: 1759 | D36: Wendy
B37: Toy | C37: 1238 | D37: Joel
B38: Kite | C38: 1440 | D38: Megan
B39: Boom | C39: 1990 | D39: Rasik
B40: Toy | C40: 1119 | D40: Yuliya
B41: Other | C41: 1109 | D41: Suix
B42: Boom | C42: 1808 | D42: Rasik
B43: Kite | C43: 1240 | D43: Megan
B44: Kite | C44: 1964 | D44: Al
B45: Other | C45: 1872 | D45: Suix
B46: Boom | C46: 1372 | D46: Suix
B47: Other | C47: 1390 | D47: Al
B48: Boom | C48: 1158 | D48: Rasik
B49: Boom | C49: 1934 | D49: Yuliya
B50: Boom | C50: 1666 | D50: Joel
B51: Other | C51: 1647 | D51: Megan
B52: Other | C52: 1085 | D52: Yuliya
B53: Other | C53: 1359 | D53: Al
B54: Toy | C54: 1293 | D54: Wendy
B55: Boom | C55: 1249 | D55: Megan
B56: Kite | C56: 1152 | D56: Yuliya
B57: Kite | C57: 1024 | D57: Debbie
B58: Other | C58: 1525 | D58: Suix
B59: Other | C59: 1018 | D59: Rasik
B60: Kite | C60: 1229 | D60: Al
B61: Other | C61: 1371 | D61: Megan
B62: Toy | C62: 1208 | D62: Wendy
B63: Other | C63: 1785 | D63: Debbie
B64: Boom | C64: 1832 | D64: Olga
B65: Other | C65: 1740 | D65: Olga
B66: Boom | C66: 1142 | D66: Olga
B67: Kite | C67: 1499 | D67: Rasik
B68: Boom | C68: 1778 | D68: Debbie
B69: Other | C69: 1681 | D69: Igor
B70: Boom | C70: 1624 | D70: Suix
B71: Kite | C71: 1314 | D71: Joel
B72: Other | C72: 1193 | D72: Joel
B73: Other | C73: 1235 | D73: Al
B74: Other | C74: 1227 | D74: Megan
B75: Toy | C75: 1567 | D75: Debbie
B76: Other | C76: 1694 | D76: Olga
B77: Kite | C77: 1664 | D77: Al
B78: Toy | C78: 1893 | D78: Debbie
B79: Other | C79: 1128 | D79: Al
B80: Toy | C80: 1408 | D80: Olga
B81: Kite | C81: 1040 | D81: Rasik
B82: Toy | C82: 1992 | D82: Megan
B83: Other | C83: 1870 | D83: Joel
B84: Toy | C84: 1376 | D84: Igor
B85: Boom | C85: 1559 | D85: Rasik
B86: Toy | C86: 1532 | D86: Rasik
B87: Other | C87: 1876 | D87: Olga
B88: Toy | C88: 1033 | D88: Rasik
B89: Boom | C89: 1324 | D89: Wendy
B90: Other | C90: 1709 | D90: Rasik
B91: Kite | C91: 1795 | D91: Suix
B92: Boom | C92: 1657 | D92: Megan
B93: Other | C93: 1434 | D93: Olga
B94: Boom | C94: 1824 | D94: Debbie
B95: Toy | C95: 1043 | D95: Yuliya
B96: Toy | C96: 1756 | D96: Yuliya
B97: Kite | C97: 1023 | D97: Igor
B98: Toy | C98: 1376 | D98: Suix
B99: Other | C99: 1561 | D99: Al
B100: Boom | C100: 1665 | D100: Rasik
B101: Kite | C101: 1452 | D101: Igor
B102: Toy | C102: 1305 | D102: Igor
B103: Toy | C103: 1965 | D103: Igor
B104: Toy | C104: 1919 | D104: Igor
B105: Toy | C105: 1826 | D105: Igor
B106: Other | C106: 1221 | D106: Megan
B107: Boom | C107: 1193 | D107: Rasik
B108: Other | C108: 1639 | D108: Suix
B109: Toy | C109: 1817 | D109: Igor
B110: Other | C110: 1288 | D110: Yuliya
B111: Kite | C111: 1350 | D111: Igor
B112: Boom | C112: 1609 | D112: Rasik
B113: Other | C113: 1270 | D113: Yuliya
B114: Kite | C114: 1143 | D114: Suix
B115: Boom | C115: 1931 | D115: Rasik
B116: Toy | C116: 1707 | D116: Debbie
B117: Boom | C117: 1983 | D117: Debbie
B118: Boom | C118: 1910 | D118: Debbie
B119: Kite | C119: 1303 | D119: Joel
B120: Other | C120: 1913 | D120: Megan
B121: Boom | C121: 1972 | D121: Rasik
B122: Boom | C122: 1253 | D122: Al
B123: Kite | C123: 1034 | D123: Olga
B124: Boom | C124: 1517 | D124: Yuliya
B125: Kite | C125: 1071 | D125: Rasik
B126: Kite | C126: 1982 | D126: Joel
B127: Boom | C127: 1189 | D127: Wendy
B128: Toy | C128: 1009 | D128: Rasik
B129: Toy | C129: 1245 | D129: Igor
B130: Other | C130: 1973 | D130: Megan
B131: Toy | C131: 1442 | D131: Debbie
B132: Toy | C132: 1873 | D132: Debbie
B133: Kite | C133: 1464 | D133: Igor
B134: Other | C134: 1159 | D134: Al
B135: Boom | C135: 1529 | D135: Debbie
B136: Toy | C136: 1809 | D136: Joel
B137: Other | C137: 1832 | D137: Joel
B138: Boom | C138: 1999 | D138: Suix
B139: Other | C139: 1115 | D139: Yuliya
B140: Toy | C140: 1518 | D140: Megan
B141: Boom | C141: 1861 | D141: Al
B142: Toy | C142: 1289 | D142: Yuliya
B143: Boom | C143: 1390 | D143: Igor
B144: Boom | C144: 1375 | D144: Megan
B145: Other | C145: 1437 | D145: Megan
B146: Boom | C146: 1333 | D146: Megan
B147: Other | C147: 1686 | D147: Olga
B148: Toy | C148: 1938 | D148: Igor
B149: Toy | C149: 1685 | D149: Olga
B150: Kite | C150: 1947 | D150: Suix
B151: Kite | C151: 1248 | D151: Rasik
B152: Other | C152: 1573 | D152: Olga
B153: Other | C153: 1811 | D153: Olga
B154: Boom | C154: 1759 | D154: Rasik
B155: Kite | C155: 1727 | D155: Al
B156: Toy | C156: 1276 | D156: Al
B157: Other | C157: 1808 | D157: Olga
B158: Other | C158: 1644 | D158: Yuliya
B159: Toy | C159: 1872 | D159: Al
B160: Kite | C160: 1461 | D160: Olga
B161: Boom | C161: 1564 | D161: Wendy
B162: Kite | C162: 1589 | D162: Yuliya
B163: Other | C163: 1989 | D163: Olga
B164: Toy | C164: 1194 | D164: Igor
B165: Toy | C165: 1116 | D165: Rasik
B166: Toy | C166: 1690 | D166: Debbie
B167: Kite | C167: 1493 | D167: Yuliya
B168: Boom | C168: 1680 | D168: Megan
B169: Kite | C169: 1916 | D169: Olga
B170: Kite | C170: 1973 | D170: Olga
B171: Boom | C171: 1378 | D171: Rasik
B172: Other | C172: 1182 | D172: Olga
B173: Toy | C173: 1252 | D173: Yuliya
B174: Toy | C174: 1101 | D174: Al
B175: Boom | C175: 1394 | D175: Joel
B176: Other | C176: 1926 | D176: Debbie
B177: Toy | C177: 1379 | D177: Debbie
B178: Toy | C178: 1528 | D178: Igor
B179: Toy | C179: 1931 | D179: Megan
B180: Boom | C180: 1780 | D180: Igor
B181: Kite | C181: 1374 | D181: Rasik
B182: Boom | C182: 1469 | D182: Joel
B183: Kite | C183: 1066 | D183: Yuliya
B184: Toy | C184: 1709 | D184: Joel
B185: Other | C185: 1901 | D185: Debbie

Sheet V(4)an
A1: =ROW()&")" -> 1) | B1: VLOOKUP (Exact match = 0) function and the Ampersand, &, can be used together to create a new text item
A2: =ROW()&")" -> 2) | B2: Hiding a column temporarily will allow you to use the "Double-click the fill handle" trick
B4: Data Dump | G4: Our System
B5: Type | C5: Sales | D5: Customer | E5: Our Type | G5: Type | H5: Number
B6: Kite | C6: 1221 | D6: Yuliya | E6: =B6&"-"&VLOOKUP(B6,G$6:H$9,2,0) -> Kite-5560 | G6: Kite | H6: 5560
B7: Boom | C7: 1101 | D7: Yuliya | E7: =B7&"-"&VLOOKUP(B7,G$6:H$9,2,0) -> Boom-5590 | G7: Boom | H7: 5590
B8: Kite | C8: 1451 | D8: Yuliya | E8: Kite-5560 | G8: Toy | H8: 5510
B9: Toy | C9: 1293 | D9: Megan | E9: Toy-5510 | G9: Other | H9: 5540
B10: Kite | C10: 1950 | D10: Rasik | E10: Kite-5560
B11: Toy | C11: 1956 | D11: Joel | E11: Toy-5510
B12: Other | C12: 1163 | D12: Rasik | E12: Other-5540
B13: Boom | C13: 1177 | D13: Rasik | E13: Boom-5590
B14: Other | C14: 1105 | D14: Igor | E14: Other-5540
B15: Kite | C15: 1797 | D15: Megan | E15: Kite-5560
B16: Boom | C16: 1692 | D16: Debbie | E16: Boom-5590
B17: Kite | C17: 1874 | D17: Wendy | E17: Kite-5560
B18: Boom | C18: 1565 | D18: Olga | E18: Boom-5590
B19: Boom | C19: 1274 | D19: Igor | E19: Boom-5590
B20: Boom | C20: 1133 | D20: Igor | E20: Boom-5590
B21: Other | C21: 1687 | D21: Olga | E21: Other-5540
B22: Boom | C22: 1083 | D22: Igor | E22: Boom-5590
B23: Kite | C23: 1094 | D23: Suix | E23: Kite-5560
B24: Boom | C24: 1146 | D24: Joel | E24: Boom-5590
B25: Toy | C25: 1776 | D25: Al | E25: Toy-5510
B26: Other | C26: 1985 | D26: Al | E26: Other-5540
B27: Other | C27: 1334 | D27: Debbie | E27: Other-5540
B28: Toy | C28: 1602 | D28: Yuliya | E28: Toy-5510
B29: Kite | C29: 1163 | D29: Al | E29: Kite-5560
B30: Toy | C30: 1715 | D30: Joel | E30: Toy-5510
B31: Boom | C31: 1155 | D31: Rasik | E31: Boom-5590
B32: Toy | C32: 1330 | D32: Igor | E32: Toy-5510
B33: Other | C33: 1972 | D33: Debbie | E33: Other-5540
B34: Toy | C34: 1728 | D34: Suix | E34: Toy-5510
B35: Other | C35: 1698 | D35: Yuliya | E35: Other-5540
B36: Kite | C36: 1759 | D36: Wendy | E36: Kite-5560
B37: Toy | C37: 1238 | D37: Joel | E37: Toy-5510
B38: Kite | C38: 1440 | D38: Megan | E38: Kite-5560
B39: Boom | C39: 1990 | D39: Rasik | E39: Boom-5590
B40: Toy | C40: 1119 | D40: Yuliya | E40: Toy-5510
B41: Other | C41: 1109 | D41: Suix | E41: Other-5540
B42: Boom | C42: 1808 | D42: Rasik | E42: Boom-5590
B43: Kite | C43: 1240 | D43: Megan | E43: Kite-5560
B44: Kite | C44: 1964 | D44: Al | E44: Kite-5560
B45: Other | C45: 1872 | D45: Suix | E45: Other-5540
B46: Boom | C46: 1372 | D46: Suix | E46: Boom-5590
B47: Other | C47: 1390 | D47: Al | E47: Other-5540
B48: Boom | C48: 1158 | D48: Rasik | E48: Boom-5590
B49: Boom | C49: 1934 | D49: Yuliya | E49: Boom-5590
B50: Boom | C50: 1666 | D50: Joel | E50: Boom-5590
B51: Other | C51: 1647 | D51: Megan | E51: Other-5540
B52: Other | C52: 1085 | D52: Yuliya | E52: Other-5540
B53: Other | C53: 1359 | D53: Al | E53: Other-5540
B54: Toy | C54: 1293 | D54: Wendy | E54: Toy-5510
B55: Boom | C55: 1249 | D55: Megan | E55: Boom-5590
B56: Kite | C56: 1152 | D56: Yuliya | E56: Kite-5560
B57: Kite | C57: 1024 | D57: Debbie | E57: Kite-5560
B58: Other | C58: 1525 | D58: Suix | E58: Other-5540
B59: Other | C59: 1018 | D59: Rasik | E59: Other-5540
B60: Kite | C60: 1229 | D60: Al | E60: Kite-5560
B61: Other | C61: 1371 | D61: Megan | E61: Other-5540
B62: Toy | C62: 1208 | D62: Wendy | E62: Toy-5510
B63: Other | C63: 1785 | D63: Debbie | E63: Other-5540
B64: Boom | C64: 1832 | D64: Olga | E64: Boom-5590
B65: Other | C65: 1740 | D65: Olga | E65: Other-5540
B66: Boom | C66: 1142 | D66: Olga | E66: Boom-5590
B67: Kite | C67: 1499 | D67: Rasik | E67: Kite-5560
B68: Boom | C68: 1778 | D68: Debbie | E68: Boom-5590
B69: Other | C69: 1681 | D69: Igor | E69: Other-5540
B70: Boom | C70: 1624 | D70: Suix | E70: Boom-5590
B71: Kite | C71: 1314 | D71: Joel | E71: =B71&"-"&VLOOKUP(B71,G$6:H$9,2,0) -> Kite-5560
B72: Other | C72: 1193 | D72: Joel | E72: Other-5540
B73: Other | C73: 1235 | D73: Al | E73: Other-5540
B74: Other | C74: 1227 | D74: Megan | E74: Other-5540
B75: Toy | C75: 1567 | D75: Debbie | E75: Toy-5510
B76: Other | C76: 1694 | D76: Olga | E76: Other-5540
B77: Kite | C77: 1664 | D77: Al | E77: Kite-5560
B78: Toy | C78: 1893 | D78: Debbie | E78: Toy-5510
B79: Other | C79: 1128 | D79: Al | E79: Other-5540
B80: Toy | C80: 1408 | D80: Olga | E80: Toy-5510
B81: Kite | C81: 1040 | D81: Rasik | E81: Kite-5560
B82: Toy | C82: 1992 | D82: Megan | E82: Toy-5510
B83: Other | C83: 1870 | D83: Joel | E83: Other-5540
B84: Toy | C84: 1376 | D84: Igor | E84: Toy-5510
B85: Boom | C85: 1559 | D85: Rasik | E85: Boom-5590
B86: Toy | C86: 1532 | D86: Rasik | E86: Toy-5510
B87: Other | C87: 1876 | D87: Olga | E87: Other-5540
B88: Toy | C88: 1033 | D88: Rasik | E88: Toy-5510
B89: Boom | C89: 1324 | D89: Wendy | E89: Boom-5590
B90: Other | C90: 1709 | D90: Rasik | E90: Other-5540
B91: Kite | C91: 1795 | D91: Suix | E91: Kite-5560
B92: Boom | C92: 1657 | D92: Megan | E92: Boom-5590
B93: Other | C93: 1434 | D93: Olga | E93: Other-5540
B94: Boom | C94: 1824 | D94: Debbie | E94: Boom-5590
B95: Toy | C95: 1043 | D95: Yuliya | E95: Toy-5510
B96: Toy | C96: 1756 | D96: Yuliya | E96: Toy-5510
B97: Kite | C97: 1023 | D97: Igor | E97: Kite-5560
B98: Toy | C98: 1376 | D98: Suix | E98: Toy-5510
B99: Other | C99: 1561 | D99: Al | E99: Other-5540
B100: Boom | C100: 1665 | D100: Rasik | E100: Boom-5590
B101: Kite | C101: 1452 | D101: Igor | E101: Kite-5560
B102: Toy | C102: 1305 | D102: Igor | E102: Toy-5510
B103: Toy | C103: 1965 | D103: Igor | E103: Toy-5510
B104: Toy | C104: 1919 | D104: Igor | E104: Toy-5510
B105: Toy | C105: 1826 | D105: Igor | E105: Toy-5510
B106: Other | C106: 1221 | D106: Megan | E106: Other-5540
B107: Boom | C107: 1193 | D107: Rasik | E107: Boom-5590
B108: Other | C108: 1639 | D108: Suix | E108: Other-5540
B109: Toy | C109: 1817 | D109: Igor | E109: Toy-5510
B110: Other | C110: 1288 | D110: Yuliya | E110: Other-5540
B111: Kite | C111: 1350 | D111: Igor | E111: Kite-5560
B112: Boom | C112: 1609 | D112: Rasik | E112: Boom-5590
B113: Other | C113: 1270 | D113: Yuliya | E113: Other-5540
B114: Kite | C114: 1143 | D114: Suix | E114: Kite-5560
B115: Boom | C115: 1931 | D115: Rasik | E115: Boom-5590
B116: Toy | C116: 1707 | D116: Debbie | E116: Toy-5510
B117: Boom | C117: 1983 | D117: Debbie | E117: Boom-5590
B118: Boom | C118: 1910 | D118: Debbie | E118: Boom-5590
B119: Kite | C119: 1303 | D119: Joel | E119: Kite-5560
B120: Other | C120: 1913 | D120: Megan | E120: Other-5540
B121: Boom | C121: 1972 | D121: Rasik | E121: Boom-5590
B122: Boom | C122: 1253 | D122: Al | E122: Boom-5590
B123: Kite | C123: 1034 | D123: Olga | E123: Kite-5560
B124: Boom | C124: 1517 | D124: Yuliya | E124: Boom-5590
B125: Kite | C125: 1071 | D125: Rasik | E125: Kite-5560
B126: Kite | C126: 1982 | D126: Joel | E126: Kite-5560
B127: Boom | C127: 1189 | D127: Wendy | E127: Boom-5590
B128: Toy | C128: 1009 | D128: Rasik | E128: Toy-5510
B129: Toy | C129: 1245 | D129: Igor | E129: Toy-5510
B130: Other | C130: 1973 | D130: Megan | E130: Other-5540
B131: Toy | C131: 1442 | D131: Debbie | E131: Toy-5510
B132: Toy | C132: 1873 | D132: Debbie | E132: Toy-5510
B133: Kite | C133: 1464 | D133: Igor | E133: Kite-5560
B134: Other | C134: 1159 | D134: Al | E134: Other-5540
B135: Boom | C135: 1529 | D135: Debbie | E135: =B135&"-"&VLOOKUP(B135,G$6:H$9,2,0) -> Boom-5590
B136: Toy | C136: 1809 | D136: Joel | E136: Toy-5510
B137: Other | C137: 1832 | D137: Joel | E137: Other-5540
B138: Boom | C138: 1999 | D138: Suix | E138: Boom-5590
B139: Other | C139: 1115 | D139: Yuliya | E139: Other-5540
B140: Toy | C140: 1518 | D140: Megan | E140: Toy-5510
B141: Boom | C141: 1861 | D141: Al | E141: Boom-5590
B142: Toy | C142: 1289 | D142: Yuliya | E142: Toy-5510
B143: Boom | C143: 1390 | D143: Igor | E143: Boom-5590
B144: Boom | C144: 1375 | D144: Megan | E144: Boom-5590
B145: Other | C145: 1437 | D145: Megan | E145: Other-5540
B146: Boom | C146: 1333 | D146: Megan | E146: Boom-5590
B147: Other | C147: 1686 | D147: Olga | E147: Other-5540
B148: Toy | C148: 1938 | D148: Igor | E148: Toy-5510
B149: Toy | C149: 1685 | D149: Olga | E149: Toy-5510
B150: Kite | C150: 1947 | D150: Suix | E150: Kite-5560
B151: Kite | C151: 1248 | D151: Rasik | E151: Kite-5560
B152: Other | C152: 1573 | D152: Olga | E152: Other-5540
B153: Other | C153: 1811 | D153: Olga | E153: Other-5540
B154: Boom | C154: 1759 | D154: Rasik | E154: Boom-5590
B155: Kite | C155: 1727 | D155: Al | E155: Kite-5560
B156: Toy | C156: 1276 | D156: Al | E156: Toy-5510
B157: Other | C157: 1808 | D157: Olga | E157: Other-5540
B158: Other | C158: 1644 | D158: Yuliya | E158: Other-5540
B159: Toy | C159: 1872 | D159: Al | E159: Toy-5510
B160: Kite | C160: 1461 | D160: Olga | E160: Kite-5560
B161: Boom | C161: 1564 | D161: Wendy | E161: Boom-5590
B162: Kite | C162: 1589 | D162: Yuliya | E162: Kite-5560
B163: Other | C163: 1989 | D163: Olga | E163: Other-5540
B164: Toy | C164: 1194 | D164: Igor | E164: Toy-5510
B165: Toy | C165: 1116 | D165: Rasik | E165: Toy-5510
B166: Toy | C166: 1690 | D166: Debbie | E166: Toy-5510
B167: Kite | C167: 1493 | D167: Yuliya | E167: Kite-5560
B168: Boom | C168: 1680 | D168: Megan | E168: Boom-5590
B169: Kite | C169: 1916 | D169: Olga | E169: Kite-5560
B170: Kite | C170: 1973 | D170: Olga | E170: Kite-5560
B171: Boom | C171: 1378 | D171: Rasik | E171: Boom-5590
B172: Other | C172: 1182 | D172: Olga | E172: Other-5540
B173: Toy | C173: 1252 | D173: Yuliya | E173: Toy-5510
B174: Toy | C174: 1101 | D174: Al | E174: Toy-5510
B175: Boom | C175: 1394 | D175: Joel | E175: Boom-5590
B176: Other | C176: 1926 | D176: Debbie | E176: Other-5540
B177: Toy | C177: 1379 | D177: Debbie | E177: Toy-5510
B178: Toy | C178: 1528 | D178: Igor | E178: Toy-5510
B179: Toy | C179: 1931 | D179: Megan | E179: Toy-5510
B180: Boom | C180: 1780 | D180: Igor | E180: Boom-5590
B181: Kite | C181: 1374 | D181: Rasik | E181: Kite-5560
B182: Boom | C182: 1469 | D182: Joel | E182: Boom-5590
B183: Kite | C183: 1066 | D183: Yuliya | E183: Kite-5560
B184: Toy | C184: 1709 | D184: Joel | E184: Toy-5510
B185: Other | C185: 1901 | D185: Debbie | E185: Other-5540

Sheet V(5)
A1: Be Careful of Formatting when you use VLOOKUP
A2: Grade Table | D2: Names | E2: Percentage Grade | F2: Letter Grade | G2: Scores | H2: Scores | I2: Scores | J2: Scores | L2: Max
A3: 0.55 | B3: F | D3: Sioux Lim | E3: =SUM(G3:J3)/L$3 -> 0.8225 | F3: =VLOOKUP(E3,A$3:B$7,2) -> C | G3: 52 | H3: 89 | I3: 90 | J3: 98 | L3: 400
A4: 0.65 | B4: D | D4: Fred Snappy | E4: =SUM(G4:J4)/L$3 -> 0.695 | F4: =VLOOKUP(E4,A$3:B$7,2) -> D | G4: 73 | H4: 83 | I4: 57 | J4: 65
A5: 0.75 | B5: C | D5: Luong Radcoolinator | E5: =SUM(G5:J5)/L$3 -> 0.845 | F5: =VLOOKUP(E5,A$3:B$7,2) -> C | G5: 81 | H5: 80 | I5: 95 | J5: 82
A6: 0.85 | B6: B | D6: Mo Dan | E6: =SUM(G6:J6)/L$3 -> 0.6825 | F6: =VLOOKUP(E6,A$3:B$7,2) -> D | G6: 67 | H6: 62 | I6: 69 | J6: 75
A7: 0.95 | B7: A

Sheet V(5)an
A1: Be Careful of Formatting when you use VLOOKUP
A2: Grade Table | D2: Names | E2: Percentage Grade | F2: Letter Grade | G2: Scores | H2: Scores | I2: Scores | J2: Scores | L2: Max
A3: 0.55 | B3: F | D3: Sioux Lim | E3: =SUM(G3:J3)/L$3 -> 0.8225 | F3: =VLOOKUP(E3,A$3:B$7,2) -> C | G3: 52 | H3: 89 | I3: 90 | J3: 98 | L3: 400
A4: 0.65 | B4: D | D4: Fred Snappy | E4: =SUM(G4:J4)/L$3 -> 0.695 | F4: =VLOOKUP(E4,A$3:B$7,2) -> D | G4: 73 | H4: 83 | I4: 57 | J4: 65
A5: 0.75 | B5: C | D5: Luong Radcoolinator | E5: =SUM(G5:J5)/L$3 -> 0.845 | F5: =VLOOKUP(E5,A$3:B$7,2) -> C | G5: 81 | H5: 80 | I5: 95 | J5: 82
A6: 0.85 | B6: B | D6: Mo Dan | E6: =SUM(G6:J6)/L$3 -> 0.6825 | F6: =VLOOKUP(E6,A$3:B$7,2) -> D | G6: 67 | H6: 62 | I6: 69 | J6: 75
A7: 0.95 | B7: A

Sheet V(6)
A1: For more on this topic (MID and VLOOKUP), see these videos:
A2: Adding 0 (zero) to a number that is a text string will convert it back to a number (MID automatically delivers a text string)
A4: VLOOKUP and MID
A5: Item ID | B5: Area | D5: Code | E5: Area
A6: NICF-55-AM | D6: 50 | E6: Front
A7: OCNQ-59-TP | D7: 51 | E7: Bins
A8: KDTY-58-TQ | D8: 52 | E8: Back Bins
A9: UGPW-52-WS | D9: 53 | E9: Shelf
A10: XHOL-59-VD | D10: 54 | E10: Storage Room
D11: 55 | E11: Freezer
D12: 56 | E12: Yard
D13: 57 | E13: Truck Port
D14: 58 | E14: Office
D15: 59 | E15: Basement

Sheet V(6)an
A1: For more on this topic (MID and VLOOKUP), see these videos:
A2: Adding 0 (zero) to a number that is a text string will convert it back to a number (MID automatically delivers a text string)
A4: VLOOKUP and MID
A5: Item ID | B5: Area | D5: Code | E5: Area
A6: NICF-55-AM | B6: =VLOOKUP(MID(A6,6,2)+0,D$6:E$15,2,0) -> Freezer | D6: 50 | E6: Front
A7: OCNQ-59-TP | B7: =VLOOKUP(MID(A7,6,2)+0,D$6:E$15,2,0) -> Basement | D7: 51 | E7: Bins
A8: KDTY-58-TQ | B8: =VLOOKUP(MID(A8,6,2)+0,D$6:E$15,2,0) -> Office | D8: 52 | E8: Back Bins
A9: UGPW-52-WS | B9: =VLOOKUP(MID(A9,6,2)+0,D$6:E$15,2,0) -> Back Bins | D9: 53 | E9: Shelf
A10: XHOL-59-VD | B10: =VLOOKUP(MID(A10,6,2)+0,D$6:E$15,2,0) -> Basement | D10: 54 | E10: Storage Room
D11: 55 | E11: Freezer
D12: 56 | E12: Yard
D13: 57 | E13: Truck Port
D14: 58 | E14: Office
D15: 59 | E15: Basement

Sheet MATCH
A1: EmployeeName | B1: Department | C1: E-Mail | D1: Phone
A2: Christina Kim
A4: 1 | B4: 2 | C4: 3 | D4: 4 | E4: 5 | F4: 6
A5: EmployeeName | B5: Department | C5: HireDate | D5: Birthday | E5: E-Mail | F5: Phone
A6: Sioux Timmy | B6: Accounting | C6: 2006-11-20 | D6: 1956-02-10 | E6: Timmy@yahoo.com | F6: 206-965-7202
A7: John Pfeffer | B7: Finance | C7: 2011-01-28 | D7: 1955-03-06 | E7: Pfeffer@gmail.com | F7: 253-998-7362
A8: Fred Smith | B8: Human Resource | C8: 2009-05-25 | D8: 1956-06-18 | E8: Smith@yahoo.com | F8: 206-814-3291
A9: Ron Sabado | B9: Accounting | C9: 2009-09-17 | D9: 1963-08-06 | E9: Sabado@eif.com | F9: 206-628-9232
A10: Christina Kim | B10: Accounting | C10: 2005-11-22 | D10: 1956-04-25 | E10: Kim@gmail.com | F10: 253-631-7119
A11: Chin Pham | B11: Finance | C11: 2005-05-01 | D11: 1960-11-01 | E11: Pham@yahoo.com | F11: 206-724-9550
A12: June Sunny | B12: Finance | C12: 2008-10-16 | D12: 1959-12-16 | E12: Sunny@yahoo.com | F12: 253-995-3226
A13: Sheliadawn Bo | B13: Human Resource | C13: 2005-10-21 | D13: 1964-01-06 | E13: Bo@eif.com | F13: 206-757-8417
B15: Department | C15: E-Mail | D15: Phone
B17: 2 | C17: 5 | D17: 6
A20: MATCH can be used to ask the question: "Is item is other list?"
A21: For more about IS functions, see these videos:
A24: List 1 | C24: List 2 | D24: Is item in List 2 in List 1? | E24: Is item in List 2 not In list 1?
A25: Name 1 | C25: Name 2
A26: Name 2 | C26: Name 3
A27: Name 2 | C27: Name 4
A28: Name 4 | C28: Name 5
A29: Name 5 | C29: Name 6
D30: TRUE = This is our current customer | E30: TRUE = This is NOT our current customer

Sheet MATCH (2)
A1: EmployeeName | B1: Department | C1: E-Mail | D1: Phone
A2: Christina Kim | B2: =VLOOKUP($A2,$A$6:$F$13,MATCH(B1,$A$5:$F$5,0),0) -> Accounting | C2: =VLOOKUP($A2,$A$6:$F$13,MATCH(C1,$A$5:$F$5,0),0) -> Kim@gmail.com | D2: 253-631-7119
A4: 1 | B4: 2 | C4: 3 | D4: 4 | E4: 5 | F4: 6
A5: EmployeeName | B5: Department | C5: HireDate | D5: Birthday | E5: E-Mail | F5: Phone
A6: Sioux Timmy | B6: Accounting | C6: 2006-11-20 | D6: 1956-02-10 | E6: Timmy@yahoo.com | F6: 206-965-7202
A7: John Pfeffer | B7: Finance | C7: 2011-01-28 | D7: 1955-03-06 | E7: Pfeffer@gmail.com | F7: 253-998-7362
A8: Fred Smith | B8: Human Resource | C8: 2009-05-25 | D8: 1956-06-18 | E8: Smith@yahoo.com | F8: 206-814-3291
A9: Ron Sabado | B9: Accounting | C9: 2009-09-17 | D9: 1963-08-06 | E9: Sabado@eif.com | F9: 206-628-9232
A10: Christina Kim | B10: Accounting | C10: 2005-11-22 | D10: 1956-04-25 | E10: Kim@gmail.com | F10: 253-631-7119
A11: Chin Pham | B11: Finance | C11: 2005-05-01 | D11: 1960-11-01 | E11: Pham@yahoo.com | F11: 206-724-9550
A12: June Sunny | B12: Finance | C12: 2008-10-16 | D12: 1959-12-16 | E12: Sunny@yahoo.com | F12: 253-995-3226
A13: Sheliadawn Bo | B13: Human Resource | C13: 2005-10-21 | D13: 1964-01-06 | E13: Bo@eif.com | F13: 206-757-8417
B15: Department | C15: E-Mail | D15: Phone
B16: =MATCH(B15,$A$5:$F$5,0) -> 2 | C16: =MATCH(C15,$A$5:$F$5,0) -> 5 | D16: 6
B17: 2 | C17: 5 | D17: 6
A20: MATCH can be used to ask the question: "Is item is other list?"
A21: For more about IS functions, see these videos:
A24: List 1 | C24: List 2 | D24: Is item in List 2 in List 1? | E24: Is item in List 2 not In list 1?
A25: Name 1 | C25: Name 2 | D25: =ISNUMBER(MATCH($C25,$A$25:$A$29,0)) -> TRUE | E25: =ISNA(MATCH($C25,$A$25:$A$29,0)) -> FALSE
A26: Name 2 | C26: Name 3 | D26: =ISNUMBER(MATCH(C26,$A$25:$A$29,0)) -> FALSE | E26: =ISNA(MATCH($C26,$A$25:$A$29,0)) -> TRUE
A27: Name 2 | C27: Name 4 | D27: TRUE | E27: FALSE
A28: Name 4 | C28: Name 5 | D28: TRUE | E28: FALSE
A29: Name 5 | C29: Name 6 | D29: FALSE | E29: TRUE
D30: TRUE = This is our current customer | E30: TRUE = This is NOT our current customer

Sheet I(1)
A1: Use INDEX as a substitute for VLOOKUP when the value you want to return is to the left of the lookup column.
A2: Product | B2: Price | C2: Description
A3: Boom01 | B3: 15 | C3: Flying Range is 10
A4: Boom02 | B4: 30 | C4: Flying Range is 20
A5: Boom03 | B5: 40 | C5: Flying Range is 50
A6: Boom04 | B6: 45 | C6: Flying Range is 60
A7: Boom05 | B7: 65 | C7: Flying Range is 70
A8: Boom06 | B8: 69 | C8: Flying Range is 80
A9: Boom07 | B9: 100 | C9: Flying Range is 85
A10: Boom08 | B10: 110 | C10: Flying Range is 110
A11: Boom09 | B11: 165 | C11: Flying Range is 160
B13: 1-Way Lookup: Lookup Column to Left
B14: Description | C14: Product
B15: Flying Range is 80

Sheet I(1)an
A1: Use INDEX as a substitute for VLOOKUP when the value you want to return is to the left of the lookup column.
A2: Product | B2: Price | C2: Description
A3: Boom01 | B3: 15 | C3: Flying Range is 10
A4: Boom02 | B4: 30 | C4: Flying Range is 20
A5: Boom03 | B5: 40 | C5: Flying Range is 50
A6: Boom04 | B6: 45 | C6: Flying Range is 60
A7: Boom05 | B7: 65 | C7: Flying Range is 70
A8: Boom06 | B8: 69 | C8: Flying Range is 80
A9: Boom07 | B9: 100 | C9: Flying Range is 85
A10: Boom08 | B10: 110 | C10: Flying Range is 110
A11: Boom09 | B11: 165 | C11: Flying Range is 160
B13: 1-Way Lookup: Lookup Column to Left
B14: Description | C14: Product
B15: Flying Range is 80 | C15: =INDEX(A3:A11,MATCH(B15,C3:C11,0)) -> Boom06

Sheet I(2)
A1: Use INDEX, MIN & MATCH to find vendor name with low bid
A2: Products/Vendors | B2: Vendor1 | C2: Vendor2 | D2: Vendor3 | E2: Vendor4 | F2: Vendor5 | G2: Low Bid | H2: Vendor for Low Bid
A3: Product1 | B3: 38.99 | C3: 48.6 | D3: 43.53 | E3: 40.08 | F3: 47.92 | G3: =MIN(B3:F3) -> 38.99
A4: Product2 | B4: 57.68 | C4: 31.8 | D4: 52.78 | E4: 31.42 | F4: 55.19 | G4: 31.42
A5: Product3 | B5: 53.32 | C5: 32.64 | D5: 37.69 | E5: 48.29 | F5: 41.59 | G5: 32.64
A6: Product4 | B6: 35.2 | C6: 40.55 | D6: 32.65 | E6: 36.81 | F6: 41.14 | G6: 32.65
A7: Product5 | B7: 56.72 | C7: 47.16 | D7: 36.42 | E7: 49.56 | F7: 39.25 | G7: 36.42
A8: Product6 | B8: 47.91 | C8: 35.08 | D8: 51.13 | E8: 49.84 | F8: 42.12 | G8: 35.08
A9: Product7 | B9: 34.81 | C9: 35.11 | D9: 48.63 | E9: 33.32 | F9: 37.83 | G9: 33.32
A10: Product8 | B10: 42.25 | C10: 35.76 | D10: 58.6 | E10: 46.28 | F10: 40.53 | G10: 35.76
A11: Product9 | B11: 40.14 | C11: 42.31 | D11: 37.62 | E11: 59.97 | F11: 42.57 | G11: 37.62
A12: Product10 | B12: 36.48 | C12: 40.79 | D12: 53.24 | E12: 51.01 | F12: 51.24 | G12: 36.48
A13: Product11 | B13: 38.57 | C13: 40.06 | D13: 54.71 | E13: 39.7 | F13: 54.73 | G13: 38.57
A14: Product12 | B14: 52.66 | C14: 43.61 | D14: 59.98 | E14: 34.61 | F14: 52.65 | G14: 34.61
A16: Use INDEX, MAX & MATCH to find student with max score
A17: Name | B17: Score | D17: Max | E17: Lookup Name w Max Score
A18: Student 1 | B18: 53 | G18: <== lookup name w max score
A19: Student 2 | B19: 18
A20: Student 3 | B20: 99
A21: Student 4 | B21: 45
A22: Student 5 | B22: 19
A23: Student 6 | B23: 27
A24: Student 7 | B24: 85
A25: Student 8 | B25: 0

Sheet I(2)an
A1: Use INDEX, MIN & MATCH to find vendor name with low bid
A2: Products/Vendors | B2: Vendor1 | C2: Vendor2 | D2: Vendor3 | E2: Vendor4 | F2: Vendor5 | G2: Low Bid | H2: Vendor for Low Bid
A3: Product1 | B3: 38.99 | C3: 48.6 | D3: 43.53 | E3: 40.08 | F3: 47.92 | G3: =MIN(B3:F3) -> 38.99 | H3: =INDEX(B$2:F$2,MATCH(G3,B3:F3,0)) -> Vendor1
A4: Product2 | B4: 57.68 | C4: 31.8 | D4: 52.78 | E4: 31.42 | F4: 55.19 | G4: 31.42 | H4: =INDEX(B$2:F$2,MATCH(G4,B4:F4,0)) -> Vendor4
A5: Product3 | B5: 53.32 | C5: 32.64 | D5: 37.69 | E5: 48.29 | F5: 41.59 | G5: 32.64 | H5: Vendor2
A6: Product4 | B6: 35.2 | C6: 40.55 | D6: 32.65 | E6: 36.81 | F6: 41.14 | G6: 32.65 | H6: Vendor3
A7: Product5 | B7: 56.72 | C7: 47.16 | D7: 36.42 | E7: 49.56 | F7: 39.25 | G7: 36.42 | H7: Vendor3
A8: Product6 | B8: 47.91 | C8: 35.08 | D8: 51.13 | E8: 49.84 | F8: 42.12 | G8: 35.08 | H8: Vendor2
A9: Product7 | B9: 34.81 | C9: 35.11 | D9: 48.63 | E9: 33.32 | F9: 37.83 | G9: 33.32 | H9: Vendor4
A10: Product8 | B10: 42.25 | C10: 35.76 | D10: 58.6 | E10: 46.28 | F10: 40.53 | G10: 35.76 | H10: Vendor2
A11: Product9 | B11: 40.14 | C11: 42.31 | D11: 37.62 | E11: 59.97 | F11: 42.57 | G11: 37.62 | H11: Vendor3
A12: Product10 | B12: 36.48 | C12: 40.79 | D12: 53.24 | E12: 51.01 | F12: 51.24 | G12: 36.48 | H12: Vendor1
A13: Product11 | B13: 38.57 | C13: 40.06 | D13: 54.71 | E13: 39.7 | F13: 54.73 | G13: 38.57 | H13: Vendor1
A14: Product12 | B14: 52.66 | C14: 43.61 | D14: 59.98 | E14: 34.61 | F14: 52.65 | G14: 34.61 | H14: Vendor4
A16: Use INDEX, MAX & MATCH to find student with max score
A17: Name | B17: Score | D17: Max | E17: Lookup Name w Max Score
A18: Student 1 | B18: 53 | D18: =MAX(B18:B25) -> 99 | E18: =INDEX(A18:A25,MATCH(D18,B18:B25,0)) -> Student 3 | G18: <== lookup name w max score
A19: Student 2 | B19: 18
A20: Student 3 | B20: 99
A21: Student 4 | B21: 45
A22: Student 5 | B22: 19
A23: Student 6 | B23: 27
A24: Student 7 | B24: 85
A25: Student 8 | B25: 0

Sheet I(3)
A1: Use INDEX and RANDBETWEEN to randomly select a name
A2: Names | C2: Name Selected:
A3: Sioux
A4: Dave
A5: Isaac
A6: Sue
A7: Luong

Sheet I(3)an
A1: Use INDEX and RANDBETWEEN to randomly select a name
A2: Names | C2: Name Selected:
A3: Sioux | C3: =INDEX(A3:A7,RANDBETWEEN(1,5)) -> Isaac
A4: Dave
A5: Isaac
A6: Sue
A7: Luong

Sheet I(4)
A1: Use INDEX, MATCH and SUM to retrieve a whole column of values and add them
A2: 0 (zero) in row_num argument will return a whole column of values (“all rows” or “entire column”)
A3: Month to add | B3: =A4&" Total" -> Mar Total
A4: Mar
A5: Jan | B5: Feb | C5: Mar | D5: Apr
A6: 1 | B6: 4 | C6: 4 | D6: 5
A7: 3 | B7: 4 | C7: 12 | D7: 1
A8: 1 | B8: 4 | C8: 2 | D8: 2
A10: Use INDEX, MATCH and SUM to retrieve a whole row of values and add them
A11: 0 (zero) in column_num argument will return a whole row of values (“all columns” or “entire row”)
A12: Month to add | B12: =A13&" Total" -> Jan Total
A13: Jan
A14: =TRANSPOSE(A5:D8) -> Jan | B14: 1 | C14: 3 | D14: 1
A15: Feb | B15: 4 | C15: 4 | D15: 4
A16: Mar | B16: 4 | C16: 12 | D16: 2
A17: Apr | B17: 5 | C17: 1 | D17: 2

Sheet I(4)an
A1: Use INDEX, MATCH and SUM to retrieve a whole column of values and add them
A2: 0 (zero) in row_num argument will return a whole column of values (“all rows” or “entire column”)
A3: Month to add | B3: =A4&" Total" -> Mar Total
A4: Mar | B4: =SUM(INDEX(A6:D8,0,MATCH(A4,A5:D5,0))) -> 18
A5: Jan | B5: Feb | C5: Mar | D5: Apr
A6: 1 | B6: 4 | C6: 4 | D6: 5
A7: 3 | B7: 4 | C7: 12 | D7: 1
A8: 1 | B8: 4 | C8: 2 | D8: 2
A10: Use INDEX, MATCH and SUM to retrieve a whole row of values and add them
A11: 0 (zero) in column_num argument will return a whole row of values (“all columns” or “entire row”)
A12: Month to add | B12: =A13&" Total" -> Jan Total
A13: Jan | B13: =SUM(INDEX(B14:D17,MATCH(A13,A14:A17,0),0)) -> 5
A14: =TRANSPOSE(A5:D8) -> Jan | B14: 1 | C14: 3 | D14: 1
A15: Feb | B15: 4 | C15: 4 | D15: 4
A16: Mar | B16: 4 | C16: 12 | D16: 2
A17: Apr | B17: 5 | C17: 1 | D17: 2

Sheet I(5)
A1: Score | B1: Decimal Grade | G1: ROWS from 6 to 1 big # to small | I1: ROWS from 1 to 6 small # to big
A2: 450 | B2: 4 | G2: =ROWS(A2:A$7) -> 6 | H2: =ROWS(A2:A$7) | I2: =ROWS(I$2:I2) -> 1 | J2: =ROWS(I$2:I2)
A3: 425 | B3: 3.7 | G3: =ROWS(A3:A$7) -> 5 | H3: =ROWS(A3:A$7) | I3: =ROWS(I$2:I3) -> 2 | J3: =ROWS(I$2:I3)
A4: 350 | B4: 3 | G4: =ROWS(A4:A$7) -> 4 | H4: =ROWS(A4:A$7) | I4: =ROWS(I$2:I4) -> 3 | J4: =ROWS(I$2:I4)
A5: 300 | B5: 2.5 | G5: =ROWS(A5:A$7) -> 3 | H5: =ROWS(A5:A$7) | I5: =ROWS(I$2:I5) -> 4 | J5: =ROWS(I$2:I5)
A6: 270 | B6: 2 | G6: =ROWS(A6:A$7) -> 2 | H6: =ROWS(A6:A$7) | I6: =ROWS(I$2:I6) -> 5 | J6: =ROWS(I$2:I6)
A7: 0 | B7: 0 | G7: =ROWS(A7:A$7) -> 1 | H7: =ROWS(A7:A$7) | I7: =ROWS(I$2:I7) -> 6 | J7: =ROWS(I$2:I7)
A9: Use INDEX to flip (invert) a range 180 degrees: =INDEX(A$2:A$7,ROWS(A2:A$7))
A10: Score | B10: Decimal Grade | D10: Score | E10: Decimal Grade
D11: 401 | E11: =VLOOKUP(D11,A11:B16,2) -> 

Sheet I(5)an
A1: Score | B1: Decimal Grade | G1: ROWS from 6 to 1 big # to small | I1: ROWS from 1 to 6 small # to big
A2: 450 | B2: 4 | G2: =ROWS(A2:A$7) -> 6 | H2: =ROWS(A2:A$7) | I2: =ROWS(I$2:I2) -> 1 | J2: =ROWS(I$2:I2)
A3: 425 | B3: 3.7 | G3: =ROWS(A3:A$7) -> 5 | H3: =ROWS(A3:A$7) | I3: =ROWS(I$2:I3) -> 2 | J3: =ROWS(I$2:I3)
A4: 350 | B4: 3 | G4: =ROWS(A4:A$7) -> 4 | H4: =ROWS(A4:A$7) | I4: =ROWS(I$2:I4) -> 3 | J4: =ROWS(I$2:I4)
A5: 300 | B5: 2.5 | G5: =ROWS(A5:A$7) -> 3 | H5: =ROWS(A5:A$7) | I5: =ROWS(I$2:I5) -> 4 | J5: =ROWS(I$2:I5)
A6: 270 | B6: 2 | G6: =ROWS(A6:A$7) -> 2 | H6: =ROWS(A6:A$7) | I6: =ROWS(I$2:I6) -> 5 | J6: =ROWS(I$2:I6)
A7: 0 | B7: 0 | G7: =ROWS(A7:A$7) -> 1 | H7: =ROWS(A7:A$7) | I7: =ROWS(I$2:I7) -> 6 | J7: =ROWS(I$2:I7)
A9: Use INDEX to flip (invert) a range 180 degrees: =INDEX(A$2:A$7,ROWS(A2:A$7))
A10: Score | B10: Decimal Grade | D10: Score | E10: Decimal Grade
A11: =INDEX(A$2:A$7,ROWS(A2:A$7)) -> 0 | B11: =INDEX(B$2:B$7,ROWS(B2:B$7)) -> 0 | D11: 401 | E11: =VLOOKUP(D11,A11:B16,2) -> 3
A12: =INDEX(A$2:A$7,ROWS(A3:A$7)) -> 270 | B12: =INDEX(B$2:B$7,ROWS(B3:B$7)) -> 2
A13: =INDEX(A$2:A$7,ROWS(A4:A$7)) -> 300 | B13: =INDEX(B$2:B$7,ROWS(B4:B$7)) -> 2.5
A14: =INDEX(A$2:A$7,ROWS(A5:A$7)) -> 350 | B14: =INDEX(B$2:B$7,ROWS(B5:B$7)) -> 3
A15: =INDEX(A$2:A$7,ROWS(A6:A$7)) -> 425 | B15: =INDEX(B$2:B$7,ROWS(B6:B$7)) -> 3.7
A16: =INDEX(A$2:A$7,ROWS(A7:A$7)) -> 450 | B16: =INDEX(B$2:B$7,ROWS(B7:B$7)) -> 4

Sheet I(6)
A1: Use INDEX & MATCH to find how much to get to next bracket
A2: Sales | B2: Commission Paid
A3: 5555 | B3: =INDEX(A7:A13,MATCH(A3,A7:A13)+1)-A3 -> 4445
A5: Commission Table
A6: Sales | B6: Rate | C6: Commission from Previous Bracket
A7: 0 | B7: 0
A8: 5000 | B8: 0.005 | C8: 0
A9: 10000 | B9: 0.01 | C9: =(A9-A8)*B8+C8 -> 25
A10: 20000 | B10: 0.02 | C10: =(A10-A9)*B9+C9 -> 125
A11: 30000 | B11: 0.03 | C11: =(A11-A10)*B10+C10 -> 325
A12: 50000 | B12: 0.06 | C12: =(A12-A11)*B11+C11 -> 925
A13: 100000 | B13: 0.1 | C13: =(A13-A12)*B12+C12 -> 3925

Sheet I(6)an
A1: Use INDEX & MATCH to find how much to get to next bracket
A2: Sales | B2: Commission Paid
A3: 5555 | B3: =INDEX(A7:A13,MATCH(A3,A7:A13)+1)-A3 -> 4445
A5: Commission Table
A6: Sales | B6: Rate | C6: Commission from Previous Bracket
A7: 0 | B7: 0
A8: 5000 | B8: 0.005 | C8: 0
A9: 10000 | B9: 0.01 | C9: =(A9-A8)*B8+C8 -> 25
A10: 20000 | B10: 0.02 | C10: =(A10-A9)*B9+C9 -> 125
A11: 30000 | B11: 0.03 | C11: =(A11-A10)*B10+C10 -> 325
A12: 50000 | B12: 0.06 | C12: =(A12-A11)*B11+C11 -> 925
A13: 100000 | B13: 0.1 | C13: =(A13-A12)*B12+C12 -> 3925

Sheet I(7)

Sheet CHOOSE
A1: Product 1 | E1: Pro | F1: Amount of Sale | G1: Table | H1: Discount ? | K1: Pro | L1: Amount of Sale
A2: 0 | B2: 0 | E2: Product 1 | F2: 3225 | K2: ="Product "&RANDBETWEEN(1,3) -> Product 3 | L2: =RANDBETWEEN(100,10000) -> 2514
A3: 500 | B3: 0.01 | E3: Product 3 | F3: 2014
A4: 1500 | B4: 0.02 | E4: Product 1 | F4: 1264
A5: 5000 | B5: 0.03 | E5: Product 1 | F5: 1755
E6: Product 3 | F6: 4609
E7: Product 3 | F7: 9300
E8: Product 3 | F8: 8850
A9: Product 2 | E9: Product 1 | F9: 2641
A10: 0 | B10: 0 | E10: Product 1 | F10: 8028
A11: 1000 | B11: 0.015 | E11: Product 1 | F11: 3288
A12: 2000 | B12: 0.025 | E12: Product 2 | F12: 1434
A13: 8000 | B13: 0.04 | E13: Product 1 | F13: 2295
E14: Product 2 | F14: 3808
E15: Product 2 | F15: 8949
E16: Product 2 | F16: 489
A17: Product 3 | E17: Product 1 | F17: 7984
A18: 0 | B18: 0 | E18: Product 1 | F18: 9610
A19: 250 | B19: 0.005 | E19: Product 1 | F19: 5376
A20: 1000 | B20: 0.01 | E20: Product 3 | F20: 5596
A21: 3000 | B21: 0.015
A23: Product 1 | B23: 1
A24: Product 2 | B24: 2
A25: Product 3 | B25: 3

Sheet CHOOSE (2)
A1: Product 1 | E1: Pro | F1: Amount of Sale | G1: Table | H1: Discount ? | L1: Pro | M1: Amount of Sale
A2: 0 | B2: 0 | E2: Product 1 | F2: 3225 | G2: =VLOOKUP(E2,$A$23:$B$25,2,0) -> 1 | H2: =F2*VLOOKUP(F2,CHOOSE(G2,$A$2:$B$5,$A$10:$B$13,$A$18:$B$21),2) -> 64.5 | J2: =F2*VLOOKUP(F2,CHOOSE(VLOOKUP(E2,$A$23:$B$25,2,0),$A$2:$B$5,$A$10:$B$13,$A$18:$B$21),2) -> 64.5 | L2: ="Product "&RANDBETWEEN(1,3) -> Product 3 | M2: =RANDBETWEEN(100,10000) -> 623
A3: 500 | B3: 0.01 | E3: Product 3 | F3: 2014 | G3: 3 | H3: =F3*VLOOKUP(F3,CHOOSE(G3,$A$2:$B$5,$A$10:$B$13,$A$18:$B$21),2) -> 20.14 | J3: =F3*VLOOKUP(F3,CHOOSE(VLOOKUP(E3,$A$23:$B$25,2,0),$A$2:$B$5,$A$10:$B$13,$A$18:$B$21),2) -> 20.14
A4: 1500 | B4: 0.02 | E4: Product 1 | F4: 1264 | G4: 1 | H4: 12.64 | J4: 12.64
A5: 5000 | B5: 0.03 | E5: Product 1 | F5: 1755 | G5: 1 | H5: 35.1 | J5: 35.1
E6: Product 3 | F6: 4609 | G6: 3 | H6: 69.135 | J6: 69.135
E7: Product 3 | F7: 9300 | G7: 3 | H7: 139.5 | J7: 139.5
E8: Product 3 | F8: 8850 | G8: 3 | H8: 132.75 | J8: 132.75
A9: Product 2 | E9: Product 1 | F9: 2641 | G9: 1 | H9: 52.82 | J9: 52.82
A10: 0 | B10: 0 | E10: Product 1 | F10: 8028 | G10: 1 | H10: 240.84 | J10: 240.84
A11: 1000 | B11: 0.015 | E11: Product 1 | F11: 3288 | G11: 1 | H11: 65.76 | J11: 65.76
A12: 2000 | B12: 0.025 | E12: Product 2 | F12: 1434 | G12: 2 | H12: 21.51 | J12: 21.51
A13: 8000 | B13: 0.04 | E13: Product 1 | F13: 2295 | G13: 1 | H13: 45.9 | J13: 45.9
E14: Product 2 | F14: 3808 | G14: 2 | H14: 95.2 | J14: 95.2
E15: Product 2 | F15: 8949 | G15: 2 | H15: 357.96 | J15: 357.96
E16: Product 2 | F16: 489 | G16: 2 | H16: 0 | J16: 0
A17: Product 3 | E17: Product 1 | F17: 7984 | G17: 1 | H17: 239.52 | J17: 239.52
A18: 0 | B18: 0 | E18: Product 1 | F18: 9610 | G18: 1 | H18: 288.3 | J18: 288.3
A19: 250 | B19: 0.005 | E19: Product 1 | F19: 5376 | G19: 1 | H19: 161.28 | J19: 161.28
A20: 1000 | B20: 0.01 | E20: Product 3 | F20: 5596 | G20: 3 | H20: 83.94 | J20: 83.94
A21: 3000 | B21: 0.015
A23: Product 1 | B23: 1
A24: Product 2 | B24: 2
A25: Product 3 | B25: 3
